{"text_format":"1","workbook":"xlsx","n_sheets":2,"sheets":["VOLT LOSS CAL","DATA"],"not_rendered":{"charts":0,"images":2,"macros":1,"external_links":0,"defined_names":2,"comments":0,"pivot_tables":0},"unopened":[],"bounds":{"document_bytes":16777216,"sheet_cells":100000,"rows_first":2000,"rows_last":500,"rows_between":2000,"halvings":0,"cell_chars":16384,"cell_head_chars":4096},"cells_cut":0,"cells_raw":0,"read":"whole","date_system":"1900"}

{"sheet":"VOLT LOSS CAL","index":0,"n_rows":43,"n_cols":7,"rows_kept":43,"cut":false,"hidden":false,"merged":[[42,5,42,7],[22,3,22,4],[1,3,1,5],[35,1,35,6],[33,1,33,8],[27,2,27,4],[22,5,22,6]]}
[]
[null,null,null,"Volt Loss / Wire Gauge Calculator"]
[null,null,null,"Tech Support: 855.592.0029   "]
[]
[null,"FILL OUT THE BLUE BOXES",null,null,null,"DATE:"]
[]
[]
[]
[]
[]
[null,"LED Strip"]
[null,"Run Length (FT)",null,{"$f":"IF(C12>C14,\"Exceed Max Run Length\",\"\")","v":""}]
[]
[null,"Max Run Length",{"$f":"IFERROR(VLOOKUP($C$11,DATA!$O$3:$S$44,5,FALSE),\"\")","v":""}]
[null,"Voltage",{"$f":"IFERROR(VLOOKUP(C11,DATA!$O$3:$Q$44,3,FALSE),\"\")","v":""}]
[null,"Min. Voltage ",{"$f":"IFERROR(VLOOKUP(C11,DATA!O3:V44,8,FALSE),\"\")","v":""}]
[null,"Wattage/FT",{"$f":"IFERROR(VLOOKUP($C$11,DATA!$O$3:$Q$44,2,FALSE),\"\")","v":""}]
[null,"Amperage/FT",{"$f":"IFERROR(VLOOKUP($C$11,DATA!$O$3:$R$44,4,FALSE),\"\")","v":""}]
[]
[null,"Total Wattage",{"$f":"IFERROR((C12*C17),\"\")","v":""}]
[null,"Total Amperage",{"$f":"IFERROR((C18*C12),\"\")","v":""}]
[]
[null,"Wire Gauge",null,{"$f":"IFERROR(IF(C27<C16,\"Increase wire gauge or reduce load\",\"Wire gauge and load is optimal\"),\"\")","v":"Wire gauge and load is optimal"},null,"Typical Wire Gauge"]
[null,"Wire Length (FT)",null,null,null,"Static White",18]
[null,"Voltage Drop (%)",{"$f":"DATA!R54","v":""},null,null,"Dim to Warm",18]
[null,"Voltage Drop (V)",{"$f":"DATA!R55","v":""},null,null,"RGBW",18]
[null,"Voltage to LED",{"$f":"DATA!R56","v":""}]
[null,{"$f":"IFERROR(IF(C27<C16,\"Sug. Wire Gauge\",\"\"),\"\")","v":""},{"$f":"IFERROR(IF(C27<C16,DATA!L61,\"\"),\"\")","v":""}]
[]
[]
[]
[]
[]
[]
[]
[null,"This design tool is for information only.  All wiring must comply with the latest edition of NFPA70 - National Electrical Code, local ordinances, and applicable local codes.  If you are unfamiliar with methods of installing electrical wiring, secure the services of a qualified, licensed electrician.  JESCO Lighting Group assumes no responsibility for incorrect wiring.\n"]
[]
[null,"New York Corporate Office",null,"Los Angeles"]
[null,"15 Harbor Park Drive, Port Washington, NY 11050",null,"219 South 6th Avenue, City of Industry, California 91746 "]
[null,"Tel: 800.527.7796  Fax: 855.265.5768",null,"Tel: 626.333.3661  Fax: 626.333.2955"]
[]
[]
[null,null,null,"www.JESCOLIGHTING.com",null,"JW03312024"]

{"sheet":"DATA","index":1,"n_rows":1748,"n_cols":228,"rows_kept":1748,"cut":false,"hidden":true,"merged":[]}
[null,"WIRE TABLE "]
["Wire","Table","ANNEAL","ED COPPE","R (AWG)",null,null,null,null,null,null,null,null,null,null,"W/FT","Voltage","Amp/FT","Max Run (FT)","Max Run (Amp)",null,null,1,2,3,4,5,6,7,8,9,10,11,12,13,14,15,16,17,18,19,20,21,22,23,24,25,26,27,28,29,30,31,32,33,34,35,36,37,38,39,40,41,42,43,44,45,46,47,48,49,50,51,52,53,54,55,56,57,58,59,60,61,62,63,64,65,66,67,68,69,70,71,72,73,74,75,76,77,78,79,80,81,82,83,84,85,86,87,88,89,90,91,92,93,94,95,96,97,98,99,100,101,102,103,104,105,106,107,108,109,110,111,112,113,114,115,116,117,118,119,120,121,122,123,124,125,126,127,128,129,130,131,132,133,134,135,136,137,138,139,140,141,142,143,144,145,146,147,148,149,150,151,152,153,154,155,156,157,158,159,160,161,162,163,164,165,166,167,168,169,170,171,172,173,174,175,176,177,178,179,180,181,182,183,184,185,186,187,188,189,190,191,192,193,194,195,196,197,198,199,200,201,202,203,204,205,206]
[null,"AWG","DIA in","CIRC","SQUARE","OHM per",null,"Ohm per foot",null,null,null,"12V",null,null,"DL-AC-FLEX2-UT",5.5,120,{"$f":"P3/Q3","v":4.583333333333333E-2},100,{"$f":"R3*S3","v":4.583333333333333},"Constant Current",112,{"$f":"R3*$W$2","v":4.583333333333333E-2},{"$f":"$R3*$X$2","v":9.166666666666666E-2},{"$f":"$R3*$Y$2","v":0.13749999999999998},{"$f":"$R3*$Z$2","v":0.18333333333333332},{"$f":"$R3*$AA$2","v":0.22916666666666666},{"$f":"$R3*$AB$2","v":0.27499999999999997},{"$f":"$R3*$AC$2","v":0.3208333333333333},{"$f":"$R3*$AD$2","v":0.36666666666666664},{"$f":"$R3*$AE$2","v":0.41249999999999998},{"$f":"$R3*$AF$2","v":0.45833333333333331},{"$f":"$R3*$AG$2","v":0.50416666666666665},{"$f":"$R3*$AH$2","v":0.54999999999999993},{"$f":"$R3*$AI$2","v":0.59583333333333333},{"$f":"$R3*$AJ$2","v":0.64166666666666661},{"$f":"$R3*$AK$2","v":0.6875},{"$f":"$R3*$AL$2","v":0.73333333333333328},{"$f":"$R3*$AM$2","v":0.77916666666666656},{"$f":"$R3*$AN$2","v":0.82499999999999996},{"$f":"$R3*$AO$2","v":0.87083333333333324},{"$f":"$R3*$AP$2","v":0.91666666666666663},{"$f":"$R3*$AQ$2","v":0.96249999999999991},{"$f":"$R3*$AR$2","v":1.0083333333333333},{"$f":"$R3*$AS$2","v":1.0541666666666667},{"$f":"$R3*$AT$2","v":1.0999999999999999},{"$f":"$R3*$AU$2","v":1.1458333333333333},{"$f":"$R3*$AV$2","v":1.1916666666666667},{"$f":"$R3*$AW$2","v":1.2374999999999998},{"$f":"$R3*$AX$2","v":1.2833333333333332},{"$f":"$R3*$AY$2","v":1.3291666666666666},{"$f":"$R3*$AZ$2","v":1.375},{"$f":"$R3*$BA$2","v":1.4208333333333332},{"$f":"$R3*$BB$2","v":1.4666666666666666},{"$f":"$R3*$BC$2","v":1.5125},{"$f":"$R3*$BD$2","v":1.5583333333333331},{"$f":"$R3*$BE$2","v":1.6041666666666665},{"$f":"$R3*$BF$2","v":1.65},{"$f":"$R3*$BG$2","v":1.6958333333333333},{"$f":"$R3*$BH$2","v":1.7416666666666665},{"$f":"$R3*$BI$2","v":1.7874999999999999},{"$f":"$R3*$BJ$2","v":1.8333333333333333},{"$f":"$R3*$BK$2","v":1.8791666666666664},{"$f":"$R3*$BL$2","v":1.9249999999999998},{"$f":"$R3*$BM$2","v":1.9708333333333332},{"$f":"$R3*$BN$2","v":2.0166666666666666},{"$f":"$R3*$BO$2","v":2.0625},{"$f":"$R3*$BP$2","v":2.1083333333333334},{"$f":"$R3*$BQ$2","v":2.1541666666666663},{"$f":"$R3*$BR$2","v":2.1999999999999997},{"$f":"$R3*$BS$2","v":2.2458333333333331},{"$f":"$R3*$BT$2","v":2.2916666666666665},{"$f":"$R3*$BU$2","v":2.3374999999999999},{"$f":"$R3*$BV$2","v":2.3833333333333333},{"$f":"$R3*$BW$2","v":2.4291666666666667},{"$f":"$R3*$BX$2","v":2.4749999999999996},{"$f":"$R3*$BY$2","v":2.520833333333333},{"$f":"$R3*$BZ$2","v":2.5666666666666664},{"$f":"$R3*$CA$2","v":2.6124999999999998},{"$f":"$R3*$CB$2","v":2.6583333333333332},{"$f":"$R3*$CC$2","v":2.7041666666666666},{"$f":"$R3*$CD$2","v":2.75},{"$f":"$R3*$CE$2","v":2.7958333333333329},{"$f":"$R3*$CF$2","v":2.8416666666666663},{"$f":"$R3*$CG$2","v":2.8874999999999997},{"$f":"$R3*$CH$2","v":2.9333333333333331},{"$f":"$R3*$CI$2","v":2.9791666666666665},{"$f":"$R3*$CJ$2","v":3.0249999999999999},{"$f":"$R3*$CK$2","v":3.0708333333333333},{"$f":"$R3*$CL$2","v":3.1166666666666663},{"$f":"$R3*$CM$2","v":3.1624999999999996},{"$f":"$R3*$CN$2","v":3.208333333333333},{"$f":"$R3*$CO$2","v":3.2541666666666664},{"$f":"$R3*$CP$2","v":3.3},{"$f":"$R3*$CQ$2","v":3.3458333333333332},{"$f":"$R3*$CR$2","v":3.3916666666666666},{"$f":"$R3*$CS$2","v":3.4374999999999996},{"$f":"$R3*$CT$2","v":3.4833333333333329},{"$f":"$R3*$CU$2","v":3.5291666666666663},{"$f":"$R3*$CV$2","v":3.5749999999999997},{"$f":"$R3*$CW$2","v":3.6208333333333331},{"$f":"$R3*$CX$2","v":3.6666666666666665},{"$f":"$R3*$CY$2","v":3.7124999999999999},{"$f":"$R3*$CZ$2","v":3.7583333333333329},{"$f":"$R3*$DA$2","v":3.8041666666666663},{"$f":"$R3*$DB$2","v":3.8499999999999996},{"$f":"$R3*$DC$2","v":3.895833333333333},{"$f":"$R3*$DD$2","v":3.9416666666666664},{"$f":"$R3*$DE$2","v":3.9874999999999998},{"$f":"$R3*$DF$2","v":4.0333333333333332},{"$f":"$R3*$DG$2","v":4.0791666666666666},{"$f":"$R3*$DH$2","v":4.125},{"$f":"$R3*$DI$2","v":4.1708333333333334},{"$f":"$R3*$DJ$2","v":4.2166666666666668},{"$f":"$R3*$DK$2","v":4.2624999999999993},{"$f":"$R3*$DL$2","v":4.3083333333333327},{"$f":"$R3*$DM$2","v":4.3541666666666661},{"$f":"$R3*$DN$2","v":4.3999999999999995},{"$f":"$R3*$DO$2","v":4.4458333333333329},{"$f":"$R3*$DP$2","v":4.4916666666666663},{"$f":"$R3*$DQ$2","v":4.5374999999999996},{"$f":"$R3*$DR$2","v":4.583333333333333},{"$f":"$R3*$DS$2","v":4.6291666666666664},{"$f":"$R3*$DT$2","v":4.6749999999999998},{"$f":"$R3*$DU$2","v":4.7208333333333332},{"$f":"$R3*$DV$2","v":4.7666666666666666},{"$f":"$R3*$DW$2","v":4.8125},{"$f":"$R3*$DX$2","v":4.8583333333333334},{"$f":"$R3*$DY$2","v":4.9041666666666659},{"$f":"$R3*$DZ$2","v":4.9499999999999993},{"$f":"$R3*$EA$2","v":4.9958333333333327},{"$f":"$R3*$EB$2","v":5.0416666666666661},{"$f":"$R3*$EC$2","v":5.0874999999999995},{"$f":"$R3*$ED$2","v":5.1333333333333329},{"$f":"$R3*$EE$2","v":5.1791666666666663},{"$f":"$R3*$EF$2","v":5.2249999999999996},{"$f":"$R3*$EG$2","v":5.270833333333333},{"$f":"$R3*$EH$2","v":5.3166666666666664},{"$f":"$R3*$EI$2","v":5.3624999999999998},{"$f":"$R3*$EJ$2","v":5.4083333333333332},{"$f":"$R3*$EK$2","v":5.4541666666666666},{"$f":"$R3*$EL$2","v":5.5},{"$f":"$R3*$EM$2","v":5.5458333333333325},{"$f":"$R3*$EN$2","v":5.5916666666666659},{"$f":"$R3*$EO$2","v":5.6374999999999993},{"$f":"$R3*$EP$2","v":5.6833333333333327},{"$f":"$R3*$EQ$2","v":5.7291666666666661},{"$f":"$R3*$ER$2","v":5.7749999999999995},{"$f":"$R3*$ES$2","v":5.8208333333333329},{"$f":"$R3*$ET$2","v":5.8666666666666663},{"$f":"$R3*$EU$2","v":5.9124999999999996},{"$f":"$R3*$EV$2","v":5.958333333333333},{"$f":"$R3*$EW$2","v":6.0041666666666664},{"$f":"$R3*$EX$2","v":6.05},{"$f":"$R3*$EY$2","v":6.0958333333333332},{"$f":"$R3*$EZ$2","v":6.1416666666666666},{"$f":"$R3*$FA$2","v":6.1875},{"$f":"$R3*$FB$2","v":6.2333333333333325},{"$f":"$R3*$FC$2","v":6.2791666666666659},{"$f":"$R3*$FD$2","v":6.3249999999999993},{"$f":"$R3*$FE$2","v":6.3708333333333327},{"$f":"$R3*$FF$2","v":6.4166666666666661},{"$f":"$R3*$FG$2","v":6.4624999999999995},{"$f":"$R3*$FH$2","v":6.5083333333333329},{"$f":"$R3*$FI$2","v":6.5541666666666663},{"$f":"$R3*$FJ$2","v":6.6},{"$f":"$R3*$FK$2","v":6.645833333333333},{"$f":"$R3*$FL$2","v":6.6916666666666664},{"$f":"$R3*$FM$2","v":6.7374999999999998},{"$f":"$R3*$FN$2","v":6.7833333333333332},{"$f":"$R3*$FO$2","v":6.8291666666666666},{"$f":"$R3*$FP$2","v":6.8749999999999991},{"$f":"$R3*$FQ$2","v":6.9208333333333325},{"$f":"$R3*$FR$2","v":6.9666666666666659},{"$f":"$R3*$FS$2","v":7.0124999999999993},{"$f":"$R3*$FT$2","v":7.0583333333333327},{"$f":"$R3*$FU$2","v":7.1041666666666661},{"$f":"$R3*$FV$2","v":7.1499999999999995},{"$f":"$R3*$FW$2","v":7.1958333333333329},{"$f":"$R3*$FX$2","v":7.2416666666666663},{"$f":"$R3*$FY$2","v":7.2874999999999996},{"$f":"$R3*$FZ$2","v":7.333333333333333},{"$f":"$R3*$GA$2","v":7.3791666666666664},{"$f":"$R3*$GB$2","v":7.4249999999999998},{"$f":"$R3*$GC$2","v":7.4708333333333332},{"$f":"$R3*$GD$2","v":7.5166666666666657}]
[null,"gauge","mils","MILS","MICROIN","1000 ft",null,null,null,null,null,"24V",null,null,"DL-AC-FLEX2-JA8",4,120,{"$f":"P4/Q4","v":3.3333333333333333E-2},100,{"$f":"R4*S4","v":3.3333333333333335},"Constant Current",112,3.3333333333333333E-2,6.6666666666666666E-2,0.1,0.13333333333333333,0.16666666666666666,0.2,0.23333333333333334,0.26666666666666666,0.3,0.33333333333333331,0.36666666666666664,0.4,0.43333333333333335,0.46666666666666667,0.5,0.53333333333333333,0.56666666666666665,0.6,0.6333333333333333,0.66666666666666663,0.7,0.73333333333333328,0.76666666666666661,0.8,0.83333333333333337,0.8666666666666667,0.9,0.93333333333333335,0.96666666666666667,1,1.0333333333333332,1.0666666666666667,1.1000000000000001,1.1333333333333333,1.1666666666666667,1.2,1.2333333333333334,1.2666666666666666,1.3,1.3333333333333333,1.3666666666666667,1.4,1.4333333333333333,1.4666666666666666,1.5,1.5333333333333332,1.5666666666666667,1.6,1.6333333333333333,1.6666666666666667,1.7,1.7333333333333334,1.7666666666666666,1.8,1.8333333333333333,1.8666666666666667,1.9,1.9333333333333333,1.9666666666666666,2,2.0333333333333332,2.0666666666666664,2.1,2.1333333333333333,2.1666666666666665,2.2000000000000002,2.2333333333333334,2.2666666666666666,2.2999999999999998,2.3333333333333335,2.3666666666666667,2.4,2.4333333333333331,2.4666666666666668,2.5,2.5333333333333332,2.5666666666666664,2.6,2.6333333333333333,2.6666666666666665,2.7,2.7333333333333334,2.7666666666666666,2.8,2.8333333333333335,2.8666666666666667,2.9,2.9333333333333331,2.9666666666666668,3,3.0333333333333332,3.0666666666666664,3.1,3.1333333333333333,3.1666666666666665,3.2,3.2333333333333334,3.2666666666666666,3.3,3.3333333333333335,3.3666666666666667,3.4,3.4333333333333331,3.4666666666666668,3.5,3.5333333333333332,3.5666666666666664,3.6,3.6333333333333333,3.6666666666666665,3.6999999999999997,3.7333333333333334,3.7666666666666666,3.8,3.8333333333333335,3.8666666666666667,3.9,3.9333333333333331,3.9666666666666668,4,4.0333333333333332,4.0666666666666664,4.0999999999999996,4.1333333333333329,4.166666666666667,4.2,4.2333333333333334,4.2666666666666666,4.3,4.333333333333333,4.3666666666666663,4.4000000000000004,4.4333333333333336,4.4666666666666668,4.5,4.5333333333333332,4.5666666666666664,4.5999999999999996,4.6333333333333329,4.666666666666667,4.7,4.7333333333333334,4.7666666666666666,4.8,4.833333333333333,4.8666666666666663,4.9000000000000004,4.9333333333333336,4.9666666666666668,5,5.0333333333333332,5.0666666666666664,5.0999999999999996,5.1333333333333329,5.166666666666667,5.2,5.2333333333333334,5.2666666666666666,5.3,5.333333333333333,5.3666666666666663,5.4,5.4333333333333336,5.4666666666666668]
[null,"=====","=======","========","========","========",null,null,null,null,null,"48V",null,null,"DL-AC-FLEX2-FS",4,120,3.3333333333333333E-2,164,{"$f":"R5*S5","v":5.4666666666666668},"Constant Current",112,3.3333333333333333E-2,6.6666666666666666E-2,0.1,0.13333333333333333,0.16666666666666666,0.2,0.23333333333333334,0.26666666666666666,0.3,0.33333333333333331,0.36666666666666664,0.4,0.43333333333333335,0.46666666666666667,0.5,0.53333333333333333,0.56666666666666665,0.6,0.6333333333333333,0.66666666666666663,0.7,0.73333333333333328,0.76666666666666661,0.8,0.83333333333333337,0.8666666666666667,0.9,0.93333333333333335,0.96666666666666667,1,1.0333333333333332,1.0666666666666667,1.1000000000000001,1.1333333333333333,1.1666666666666667,1.2,1.2333333333333334,1.2666666666666666,1.3,1.3333333333333333,1.3666666666666667,1.4,1.4333333333333333,1.4666666666666666,1.5,1.5333333333333332,1.5666666666666667,1.6,1.6333333333333333,1.6666666666666667,1.7,1.7333333333333334,1.7666666666666666,1.8,1.8333333333333333,1.8666666666666667,1.9,1.9333333333333333,1.9666666666666666,2,2.0333333333333332,2.0666666666666664,2.1,2.1333333333333333,2.1666666666666665,2.2000000000000002,2.2333333333333334,2.2666666666666666,2.2999999999999998,2.3333333333333335,2.3666666666666667,2.4,2.4333333333333331,2.4666666666666668,2.5,2.5333333333333332,2.5666666666666664,2.6,2.6333333333333333,2.6666666666666665,2.7,2.7333333333333334,2.7666666666666666,2.8,2.8333333333333335,2.8666666666666667,2.9,2.9333333333333331,2.9666666666666668,3,3.0333333333333332,3.0666666666666664,3.1,3.1333333333333333,3.1666666666666665,3.2,3.2333333333333334,3.2666666666666666,3.3,3.3333333333333335,3.3666666666666667,3.4,3.4333333333333331,3.4666666666666668,3.5,3.5333333333333332,3.5666666666666664,3.6,3.6333333333333333,3.6666666666666665,3.6999999999999997,3.7333333333333334,3.7666666666666666,3.8,3.8333333333333335,3.8666666666666667,3.9,3.9333333333333331,3.9666666666666668,4,4.0333333333333332,4.0666666666666664,4.0999999999999996,4.1333333333333329,4.166666666666667,4.2,4.2333333333333334,4.2666666666666666,4.3,4.333333333333333,4.3666666666666663,4.4000000000000004,4.4333333333333336,4.4666666666666668,4.5,4.5333333333333332,4.5666666666666664,4.5999999999999996,4.6333333333333329,4.666666666666667,4.7,4.7333333333333334,4.7666666666666666,4.8,4.833333333333333,4.8666666666666663,4.9000000000000004,4.9333333333333336,4.9666666666666668,5,5.0333333333333332,5.0666666666666664,5.0999999999999996,5.1333333333333329,5.166666666666667,5.2,5.2333333333333334,5.2666666666666666,5.3,5.333333333333333,5.3666666666666663,5.4,5.4333333333333336,5.4666666666666668]
[null,0,460,211600,166200,4.9009999999999998E-2,null,{"$f":"F6/1000","v":4.901E-5},null,null,null,"120V",null,null,"DL-AC-FLEX2-LT",4,120,3.3333333333333333E-2,164,5.4666666666666668,"Constant Current",112,3.3333333333333333E-2,6.6666666666666666E-2,0.1,0.13333333333333333,0.16666666666666666,0.2,0.23333333333333334,0.26666666666666666,0.3,0.33333333333333331,0.36666666666666664,0.4,0.43333333333333335,0.46666666666666667,0.5,0.53333333333333333,0.56666666666666665,0.6,0.6333333333333333,0.66666666666666663,0.7,0.73333333333333328,0.76666666666666661,0.8,0.83333333333333337,0.8666666666666667,0.9,0.93333333333333335,0.96666666666666667,1,1.0333333333333332,1.0666666666666667,1.1000000000000001,1.1333333333333333,1.1666666666666667,1.2,1.2333333333333334,1.2666666666666666,1.3,1.3333333333333333,1.3666666666666667,1.4,1.4333333333333333,1.4666666666666666,1.5,1.5333333333333332,1.5666666666666667,1.6,1.6333333333333333,1.6666666666666667,1.7,1.7333333333333334,1.7666666666666666,1.8,1.8333333333333333,1.8666666666666667,1.9,1.9333333333333333,1.9666666666666666,2,2.0333333333333332,2.0666666666666664,2.1,2.1333333333333333,2.1666666666666665,2.2000000000000002,2.2333333333333334,2.2666666666666666,2.2999999999999998,2.3333333333333335,2.3666666666666667,2.4,2.4333333333333331,2.4666666666666668,2.5,2.5333333333333332,2.5666666666666664,2.6,2.6333333333333333,2.6666666666666665,2.7,2.7333333333333334,2.7666666666666666,2.8,2.8333333333333335,2.8666666666666667,2.9,2.9333333333333331,2.9666666666666668,3,3.0333333333333332,3.0666666666666664,3.1,3.1333333333333333,3.1666666666666665,3.2,3.2333333333333334,3.2666666666666666,3.3,3.3333333333333335,3.3666666666666667,3.4,3.4333333333333331,3.4666666666666668,3.5,3.5333333333333332,3.5666666666666664,3.6,3.6333333333333333,3.6666666666666665,3.6999999999999997,3.7333333333333334,3.7666666666666666,3.8,3.8333333333333335,3.8666666666666667,3.9,3.9333333333333331,3.9666666666666668,4,4.0333333333333332,4.0666666666666664,4.0999999999999996,4.1333333333333329,4.166666666666667,4.2,4.2333333333333334,4.2666666666666666,4.3,4.333333333333333,4.3666666666666663,4.4000000000000004,4.4333333333333336,4.4666666666666668,4.5,4.5333333333333332,4.5666666666666664,4.5999999999999996,4.6333333333333329,4.666666666666667,4.7,4.7333333333333334,4.7666666666666666,4.8,4.833333333333333,4.8666666666666663,4.9000000000000004,4.9333333333333336,4.9666666666666668,5,5.0333333333333332,5.0666666666666664,5.0999999999999996,5.1333333333333329,5.166666666666667,5.2,5.2333333333333334,5.2666666666666666,5.3,5.333333333333333,5.3666666666666663,5.4,5.4333333333333336,5.4666666666666668]
[null,0,409.6,167800,131800,6.1800000000000001E-2,null,{"$f":"F7/1000","v":6.1799999999999998E-5},null,null,null,null,null,null,"DL-AC-FLEX2-EB",2.5,120,2.0833333333333332E-2,164,3.4166666666666665,"Constant Current",112,2.0833333333333332E-2,4.1666666666666664E-2,6.25E-2,8.3333333333333329E-2,0.10416666666666666,0.125,0.14583333333333331,0.16666666666666666,0.1875,0.20833333333333331,0.22916666666666666,0.25,0.27083333333333331,0.29166666666666663,0.3125,0.33333333333333331,0.35416666666666663,0.375,0.39583333333333331,0.41666666666666663,0.4375,0.45833333333333331,0.47916666666666663,0.5,0.52083333333333326,0.54166666666666663,0.5625,0.58333333333333326,0.60416666666666663,0.625,0.64583333333333326,0.66666666666666663,0.6875,0.70833333333333326,0.72916666666666663,0.75,0.77083333333333326,0.79166666666666663,0.8125,0.83333333333333326,0.85416666666666663,0.875,0.89583333333333326,0.91666666666666663,0.9375,0.95833333333333326,0.97916666666666663,1,1.0208333333333333,1.0416666666666665,1.0625,1.0833333333333333,1.1041666666666665,1.125,1.1458333333333333,1.1666666666666665,1.1875,1.2083333333333333,1.2291666666666665,1.25,1.2708333333333333,1.2916666666666665,1.3125,1.3333333333333333,1.3541666666666665,1.375,1.3958333333333333,1.4166666666666665,1.4375,1.4583333333333333,1.4791666666666665,1.5,1.5208333333333333,1.5416666666666665,1.5625,1.5833333333333333,1.6041666666666665,1.625,1.6458333333333333,1.6666666666666665,1.6875,1.7083333333333333,1.7291666666666665,1.75,1.7708333333333333,1.7916666666666665,1.8125,1.8333333333333333,1.8541666666666665,1.875,1.8958333333333333,1.9166666666666665,1.9375,1.9583333333333333,1.9791666666666665,2,2.020833333333333,2.0416666666666665,2.0625,2.083333333333333,2.1041666666666665,2.125,2.145833333333333,2.1666666666666665,2.1875,2.208333333333333,2.2291666666666665,2.25,2.270833333333333,2.2916666666666665,2.3125,2.333333333333333,2.3541666666666665,2.375,2.395833333333333,2.4166666666666665,2.4375,2.458333333333333,2.4791666666666665,2.5,2.520833333333333,2.5416666666666665,2.5625,2.583333333333333,2.6041666666666665,2.625,2.645833333333333,2.6666666666666665,2.6875,2.708333333333333,2.7291666666666665,2.75,2.770833333333333,2.7916666666666665,2.8125,2.833333333333333,2.8541666666666665,2.875,2.895833333333333,2.9166666666666665,2.9375,2.958333333333333,2.9791666666666665,3,3.020833333333333,3.0416666666666665,3.0625,3.083333333333333,3.1041666666666665,3.125,3.145833333333333,3.1666666666666665,3.1875,3.208333333333333,3.2291666666666665,3.25,3.270833333333333,3.2916666666666665,3.3125,3.333333333333333,3.3541666666666665,3.375,3.395833333333333,3.4166666666666665]
[null,0,364.8,133100,104500,7.7929999999999999E-2,null,7.7929999999999994E-5,null,null,null,null,null,null,"DL-AC-FLEX2-RGBW",3,120,2.5000000000000001E-2,164,4.1000000000000005,"Constant Voltage",110,2.5000000000000001E-2,0.05,7.5000000000000011E-2,0.1,0.125,0.15000000000000002,0.17500000000000002,0.2,0.22500000000000001,0.25,0.27500000000000002,0.30000000000000004,0.32500000000000001,0.35000000000000003,0.375,0.4,0.42500000000000004,0.45,0.47500000000000003,0.5,0.52500000000000002,0.55000000000000004,0.57500000000000007,0.60000000000000009,0.625,0.65,0.67500000000000004,0.70000000000000007,0.72500000000000009,0.75,0.77500000000000002,0.8,0.82500000000000007,0.85000000000000009,0.875,0.9,0.92500000000000004,0.95000000000000007,0.97500000000000009,1,1.0250000000000001,1.05,1.075,1.1000000000000001,1.125,1.1500000000000001,1.175,1.2000000000000002,1.2250000000000001,1.25,1.2750000000000001,1.3,1.3250000000000002,1.35,1.375,1.4000000000000001,1.425,1.4500000000000002,1.4750000000000001,1.5,1.5250000000000001,1.55,1.5750000000000002,1.6,1.625,1.6500000000000001,1.675,1.7000000000000002,1.7250000000000001,1.75,1.7750000000000001,1.8,1.8250000000000002,1.85,1.875,1.9000000000000001,1.925,1.9500000000000002,1.9750000000000001,2,2.0249999999999999,2.0500000000000003,2.0750000000000002,2.1,2.125,2.15,2.1750000000000003,2.2000000000000002,2.2250000000000001,2.25,2.2749999999999999,2.3000000000000003,2.3250000000000002,2.35,2.375,2.4000000000000004,2.4250000000000003,2.4500000000000002,2.4750000000000001,2.5,2.5250000000000004,2.5500000000000003,2.5750000000000002,2.6,2.625,2.6500000000000004,2.6750000000000003,2.7,2.7250000000000001,2.75,2.7750000000000004,2.8000000000000003,2.8250000000000002,2.85,2.875,2.9000000000000004,2.9250000000000003,2.95,2.9750000000000001,3,3.0250000000000004,3.0500000000000003,3.0750000000000002,3.1,3.125,3.1500000000000004,3.1750000000000003,3.2,3.2250000000000001,3.25,3.2750000000000004,3.3000000000000003,3.3250000000000002,3.35,3.375,3.4000000000000004,3.4250000000000003,3.45,3.4750000000000001,3.5,3.5250000000000004,3.5500000000000003,3.5750000000000002,3.6,3.625,3.6500000000000004,3.6750000000000003,3.7,3.7250000000000001,3.75,3.7750000000000004,3.8000000000000003,3.8250000000000002,3.85,3.875,3.9000000000000004,3.9250000000000003,3.95,3.9750000000000001,4,4.0250000000000004,4.05,4.0750000000000002,4.1000000000000005]
[null,0,324.89999999999998,105500,82890,9.8269999999999996E-2,null,9.8269999999999993E-5,null,null,null,null,null,null,"DL-AC-FLEX2-DTW",6,120,0.05,100,5,"Constant Current",112,{"$f":"R9*$W$2","v":0.05},0.1,0.15000000000000002,0.2,0.25,0.30000000000000004,0.35000000000000003,0.4,0.45,0.5,0.55000000000000004,0.60000000000000009,0.65,0.70000000000000007,0.75,0.8,0.85000000000000009,0.9,0.95000000000000007,1,1.05,1.1000000000000001,1.1500000000000001,1.2000000000000002,1.25,1.3,1.35,1.4000000000000001,1.4500000000000002,1.5,1.55,1.6,1.6500000000000001,1.7000000000000002,1.75,1.8,1.85,1.9000000000000001,1.9500000000000002,2,2.0500000000000003,2.1,2.15,2.2000000000000002,2.25,2.3000000000000003,2.35,2.4000000000000004,2.4500000000000002,2.5,2.5500000000000003,2.6,2.6500000000000004,2.7,2.75,2.8000000000000003,2.85,2.9000000000000004,2.95,3,3.0500000000000003,3.1,3.1500000000000004,3.2,3.25,3.3000000000000003,3.35,3.4000000000000004,3.45,3.5,3.5500000000000003,3.6,3.6500000000000004,3.7,3.75,3.8000000000000003,3.85,3.9000000000000004,3.95,4,4.05,4.1000000000000005,4.1500000000000004,4.2,4.25,4.3,4.3500000000000005,4.4000000000000004,4.45,4.5,4.55,4.6000000000000005,4.6500000000000004,4.7,4.75,4.8000000000000007,4.8500000000000005,4.9000000000000004,4.95,5,5.0500000000000007,5.1000000000000005,5.15,5.2,5.25,5.3000000000000007,5.3500000000000005,5.4,5.45,5.5,5.5500000000000007,5.6000000000000005,5.65,5.7,5.75,5.8000000000000007,5.8500000000000005,5.9,5.95,6,6.0500000000000007,6.1000000000000005,6.15,6.2,6.25,6.3000000000000007,6.3500000000000005,6.4,6.45,6.5,6.5500000000000007,6.6000000000000005,6.65,6.7,6.75,6.8000000000000007,6.8500000000000005,6.9,6.95,7,7.0500000000000007,7.1000000000000005,7.15,7.2,7.25,7.3000000000000007,7.3500000000000005,7.4,7.45,7.5,7.5500000000000007,7.6000000000000005,7.65,7.7,7.75,7.8000000000000007,7.8500000000000005,7.9,7.95,8,8.0500000000000007,8.1,8.15,8.2000000000000011]
[null,1,289.3,83690,65730,0.1239,null,1.239E-4,null,null,null,null,null,null,"DL-AC-FLEX2-ST",3.5,120,2.9166666666666667E-2,164,4.7833333333333332,"Constant Current",112,2.9166666666666667E-2,5.8333333333333334E-2,8.7499999999999994E-2,0.11666666666666667,0.14583333333333334,0.17499999999999999,0.20416666666666666,0.23333333333333334,0.26250000000000001,0.29166666666666669,0.32083333333333336,0.35,0.37916666666666665,0.40833333333333333,0.4375,0.46666666666666667,0.49583333333333335,0.52500000000000002,0.5541666666666667,0.58333333333333337,0.61250000000000004,0.64166666666666672,0.67083333333333339,0.7,0.72916666666666663,0.7583333333333333,0.78749999999999998,0.81666666666666665,0.84583333333333333,0.875,0.90416666666666667,0.93333333333333335,0.96250000000000002,0.9916666666666667,1.0208333333333333,1.05,1.0791666666666666,1.1083333333333334,1.1375,1.1666666666666667,1.1958333333333333,1.2250000000000001,1.2541666666666667,1.2833333333333334,1.3125,1.3416666666666668,1.3708333333333333,1.4,1.4291666666666667,1.4583333333333333,1.4875,1.5166666666666666,1.5458333333333334,1.575,1.6041666666666667,1.6333333333333333,1.6625000000000001,1.6916666666666667,1.7208333333333334,1.75,1.7791666666666668,1.8083333333333333,1.8375000000000001,1.8666666666666667,1.8958333333333333,1.925,1.9541666666666666,1.9833333333333334,2.0125000000000002,2.0416666666666665,2.0708333333333333,2.1,2.1291666666666669,2.1583333333333332,2.1875,2.2166666666666668,2.2458333333333336,2.2749999999999999,2.3041666666666667,2.3333333333333335,2.3624999999999998,2.3916666666666666,2.4208333333333334,2.4500000000000002,2.4791666666666665,2.5083333333333333,2.5375000000000001,2.5666666666666669,2.5958333333333332,2.625,2.6541666666666668,2.6833333333333336,2.7124999999999999,2.7416666666666667,2.7708333333333335,2.8,2.8291666666666666,2.8583333333333334,2.8875000000000002,2.9166666666666665,2.9458333333333333,2.9750000000000001,3.0041666666666669,3.0333333333333332,3.0625,3.0916666666666668,3.1208333333333336,3.15,3.1791666666666667,3.2083333333333335,3.2375000000000003,3.2666666666666666,3.2958333333333334,3.3250000000000002,3.3541666666666665,3.3833333333333333,3.4125000000000001,3.4416666666666669,3.4708333333333332,3.5,3.5291666666666668,3.5583333333333336,3.5874999999999999,3.6166666666666667,3.6458333333333335,3.6750000000000003,3.7041666666666666,3.7333333333333334,3.7625000000000002,3.7916666666666665,3.8208333333333333,3.85,3.8791666666666669,3.9083333333333332,3.9375,3.9666666666666668,3.9958333333333336,4.0250000000000004,4.0541666666666671,4.083333333333333,4.1124999999999998,4.1416666666666666,4.1708333333333334,4.2,4.229166666666667,4.2583333333333337,4.2874999999999996,4.3166666666666664,4.3458333333333332,4.375,4.4041666666666668,4.4333333333333336,4.4625000000000004,4.4916666666666671,4.520833333333333,4.55,4.5791666666666666,4.6083333333333334,4.6375000000000002,4.666666666666667,4.6958333333333337,4.7249999999999996,4.7541666666666664,4.7833333333333332]
[null,2,257.60000000000002,66370,52130,0.15629999999999999,null,1.563E-4,null,null,null,null,null,null,"DL-AC-FLEX2-NPX",6,120,0.05,100,5,"Constant Current",112,0.05,0.1,0.15000000000000002,0.2,0.25,0.30000000000000004,0.35000000000000003,0.4,0.45,0.5,0.55000000000000004,0.60000000000000009,0.65,0.70000000000000007,0.75,0.8,0.85000000000000009,0.9,0.95000000000000007,1,1.05,1.1000000000000001,1.1500000000000001,1.2000000000000002,1.25,1.3,1.35,1.4000000000000001,1.4500000000000002,1.5,1.55,1.6,1.6500000000000001,1.7000000000000002,1.75,1.8,1.85,1.9000000000000001,1.9500000000000002,2,2.0500000000000003,2.1,2.15,2.2000000000000002,2.25,2.3000000000000003,2.35,2.4000000000000004,2.4500000000000002,2.5,2.5500000000000003,2.6,2.6500000000000004,2.7,2.75,2.8000000000000003,2.85,2.9000000000000004,2.95,3,3.0500000000000003,3.1,3.1500000000000004,3.2,3.25,3.3000000000000003,3.35,3.4000000000000004,3.45,3.5,3.5500000000000003,3.6,3.6500000000000004,3.7,3.75,3.8000000000000003,3.85,3.9000000000000004,3.95,4,4.05,4.1000000000000005,4.1500000000000004,4.2,4.25,4.3,4.3500000000000005,4.4000000000000004,4.45,4.5,4.55,4.6000000000000005,4.6500000000000004,4.7,4.75,4.8000000000000007,4.8500000000000005,4.9000000000000004,4.95,5,5.0500000000000007,5.1000000000000005,5.15,5.2,5.25,5.3000000000000007,5.3500000000000005,5.4,5.45,5.5,5.5500000000000007,5.6000000000000005,5.65,5.7,5.75,5.8000000000000007,5.8500000000000005,5.9,5.95,6,6.0500000000000007,6.1000000000000005,6.15,6.2,6.25,6.3000000000000007,6.3500000000000005,6.4,6.45,6.5,6.5500000000000007,6.6000000000000005,6.65,6.7,6.75,6.8000000000000007,6.8500000000000005,6.9,6.95,7,7.0500000000000007,7.1000000000000005,7.15,7.2,7.25,7.3000000000000007,7.3500000000000005,7.4,7.45,7.5,7.5500000000000007,7.6000000000000005,7.65,7.7,7.75,7.8000000000000007,7.8500000000000005,7.9,7.95,8,8.0500000000000007,8.1,8.15,8.2000000000000011]
[null,3,229.4,52640,41340,0.19700000000000001,null,1.9700000000000002E-4,null,null,null,null,null,null,"DL-AC-FLEX2-BEAM",6,120,0.05,100,5,"Constant Current",112,0.05,0.1,0.15000000000000002,0.2,0.25,0.30000000000000004,0.35000000000000003,0.4,0.45,0.5,0.55000000000000004,0.60000000000000009,0.65,0.70000000000000007,0.75,0.8,0.85000000000000009,0.9,0.95000000000000007,1,1.05,1.1000000000000001,1.1500000000000001,1.2000000000000002,1.25,1.3,1.35,1.4000000000000001,1.4500000000000002,1.5,1.55,1.6,1.6500000000000001,1.7000000000000002,1.75,1.8,1.85,1.9000000000000001,1.9500000000000002,2,2.0500000000000003,2.1,2.15,2.2000000000000002,2.25,2.3000000000000003,2.35,2.4000000000000004,2.4500000000000002,2.5,2.5500000000000003,2.6,2.6500000000000004,2.7,2.75,2.8000000000000003,2.85,2.9000000000000004,2.95,3,3.0500000000000003,3.1,3.1500000000000004,3.2,3.25,3.3000000000000003,3.35,3.4000000000000004,3.45,3.5,3.5500000000000003,3.6,3.6500000000000004,3.7,3.75,3.8000000000000003,3.85,3.9000000000000004,3.95,4,4.05,4.1000000000000005,4.1500000000000004,4.2,4.25,4.3,4.3500000000000005,4.4000000000000004,4.45,4.5,4.55,4.6000000000000005,4.6500000000000004,4.7,4.75,4.8000000000000007,4.8500000000000005,4.9000000000000004,4.95,5,5.0500000000000007,5.1000000000000005,5.15,5.2,5.25,5.3000000000000007,5.3500000000000005,5.4,5.45,5.5,5.5500000000000007,5.6000000000000005,5.65,5.7,5.75,5.8000000000000007,5.8500000000000005,5.9,5.95,6,6.0500000000000007,6.1000000000000005,6.15,6.2,6.25,6.3000000000000007,6.3500000000000005,6.4,6.45,6.5,6.5500000000000007,6.6000000000000005,6.65,6.7,6.75,6.8000000000000007,6.8500000000000005,6.9,6.95,7,7.0500000000000007,7.1000000000000005,7.15,7.2,7.25,7.3000000000000007,7.3500000000000005,7.4,7.45,7.5,7.5500000000000007,7.6000000000000005,7.65,7.7,7.75,7.8000000000000007,7.8500000000000005,7.9,7.95,8,8.0500000000000007,8.1,8.15,8.2000000000000011]
[null,4,204.3,41740,32780,0.2485,null,2.4850000000000002E-4,null,null,null,null,null,null,"DL-AC-FLEX2-LNTB",2.7,120,2.2500000000000003E-2,164,3.6900000000000004,"Constant Current",112,2.2500000000000003E-2,4.5000000000000005E-2,6.7500000000000004E-2,9.0000000000000011E-2,0.11250000000000002,0.13500000000000001,0.15750000000000003,0.18000000000000002,0.20250000000000001,0.22500000000000003,0.24750000000000003,0.27,0.29250000000000004,0.31500000000000006,0.33750000000000002,0.36000000000000004,0.38250000000000006,0.40500000000000003,0.42750000000000005,0.45000000000000007,0.47250000000000003,0.49500000000000005,0.51750000000000007,0.54,0.56250000000000011,0.58500000000000008,0.60750000000000004,0.63000000000000012,0.65250000000000008,0.67500000000000004,0.69750000000000012,0.72000000000000008,0.74250000000000005,0.76500000000000012,0.78750000000000009,0.81,0.83250000000000013,0.85500000000000009,0.87750000000000006,0.90000000000000013,0.9225000000000001,0.94500000000000006,0.96750000000000014,0.9900000000000001,1.0125000000000002,1.0350000000000001,1.0575000000000001,1.08,1.1025,1.1250000000000002,1.1475000000000002,1.1700000000000002,1.1925000000000001,1.2150000000000001,1.2375,1.2600000000000002,1.2825000000000002,1.3050000000000002,1.3275000000000001,1.35,1.3725000000000001,1.3950000000000002,1.4175000000000002,1.4400000000000002,1.4625000000000001,1.4850000000000001,1.5075000000000003,1.5300000000000002,1.5525000000000002,1.5750000000000002,1.5975000000000001,1.62,1.6425000000000003,1.6650000000000003,1.6875000000000002,1.7100000000000002,1.7325000000000002,1.7550000000000001,1.7775000000000003,1.8000000000000003,1.8225000000000002,1.8450000000000002,1.8675000000000002,1.8900000000000001,1.9125000000000003,1.9350000000000003,1.9575000000000002,1.9800000000000002,2.0025000000000004,2.0250000000000004,2.0475000000000003,2.0700000000000003,2.0925000000000002,2.1150000000000002,2.1375000000000002,2.16,2.1825000000000001,2.2050000000000001,2.2275000000000005,2.2500000000000004,2.2725000000000004,2.2950000000000004,2.3175000000000003,2.3400000000000003,2.3625000000000003,2.3850000000000002,2.4075000000000002,2.4300000000000002,2.4525000000000001,2.4750000000000001,2.4975000000000005,2.5200000000000005,2.5425000000000004,2.5650000000000004,2.5875000000000004,2.6100000000000003,2.6325000000000003,2.6550000000000002,2.6775000000000002,2.7,2.7225000000000001,2.7450000000000001,2.7675000000000005,2.7900000000000005,2.8125000000000004,2.8350000000000004,2.8575000000000004,2.8800000000000003,2.9025000000000003,2.9250000000000003,2.9475000000000002,2.97,2.9925000000000002,3.0150000000000006,3.0375000000000005,3.0600000000000005,3.0825000000000005,3.1050000000000004,3.1275000000000004,3.1500000000000004,3.1725000000000003,3.1950000000000003,3.2175000000000002,3.24,3.2625000000000002,3.2850000000000006,3.3075000000000006,3.3300000000000005,3.3525000000000005,3.3750000000000004,3.3975000000000004,3.4200000000000004,3.4425000000000003,3.4650000000000003,3.4875000000000003,3.5100000000000002,3.5325000000000002,3.5550000000000006,3.5775000000000006,3.6000000000000005,3.6225000000000005,3.6450000000000005,3.6675000000000004,3.6900000000000004]
[null,5,181.9,33100,26000,0.31330000000000002,null,3.1330000000000003E-4,null,null,null,null,null,null,"DL-AC-FLEX2-LNSB",2.7,120,2.2500000000000003E-2,164,3.6900000000000004,"Constant Current",112,2.2500000000000003E-2,4.5000000000000005E-2,6.7500000000000004E-2,9.0000000000000011E-2,0.11250000000000002,0.13500000000000001,0.15750000000000003,0.18000000000000002,0.20250000000000001,0.22500000000000003,0.24750000000000003,0.27,0.29250000000000004,0.31500000000000006,0.33750000000000002,0.36000000000000004,0.38250000000000006,0.40500000000000003,0.42750000000000005,0.45000000000000007,0.47250000000000003,0.49500000000000005,0.51750000000000007,0.54,0.56250000000000011,0.58500000000000008,0.60750000000000004,0.63000000000000012,0.65250000000000008,0.67500000000000004,0.69750000000000012,0.72000000000000008,0.74250000000000005,0.76500000000000012,0.78750000000000009,0.81,0.83250000000000013,0.85500000000000009,0.87750000000000006,0.90000000000000013,0.9225000000000001,0.94500000000000006,0.96750000000000014,0.9900000000000001,1.0125000000000002,1.0350000000000001,1.0575000000000001,1.08,1.1025,1.1250000000000002,1.1475000000000002,1.1700000000000002,1.1925000000000001,1.2150000000000001,1.2375,1.2600000000000002,1.2825000000000002,1.3050000000000002,1.3275000000000001,1.35,1.3725000000000001,1.3950000000000002,1.4175000000000002,1.4400000000000002,1.4625000000000001,1.4850000000000001,1.5075000000000003,1.5300000000000002,1.5525000000000002,1.5750000000000002,1.5975000000000001,1.62,1.6425000000000003,1.6650000000000003,1.6875000000000002,1.7100000000000002,1.7325000000000002,1.7550000000000001,1.7775000000000003,1.8000000000000003,1.8225000000000002,1.8450000000000002,1.8675000000000002,1.8900000000000001,1.9125000000000003,1.9350000000000003,1.9575000000000002,1.9800000000000002,2.0025000000000004,2.0250000000000004,2.0475000000000003,2.0700000000000003,2.0925000000000002,2.1150000000000002,2.1375000000000002,2.16,2.1825000000000001,2.2050000000000001,2.2275000000000005,2.2500000000000004,2.2725000000000004,2.2950000000000004,2.3175000000000003,2.3400000000000003,2.3625000000000003,2.3850000000000002,2.4075000000000002,2.4300000000000002,2.4525000000000001,2.4750000000000001,2.4975000000000005,2.5200000000000005,2.5425000000000004,2.5650000000000004,2.5875000000000004,2.6100000000000003,2.6325000000000003,2.6550000000000002,2.6775000000000002,2.7,2.7225000000000001,2.7450000000000001,2.7675000000000005,2.7900000000000005,2.8125000000000004,2.8350000000000004,2.8575000000000004,2.8800000000000003,2.9025000000000003,2.9250000000000003,2.9475000000000002,2.97,2.9925000000000002,3.0150000000000006,3.0375000000000005,3.0600000000000005,3.0825000000000005,3.1050000000000004,3.1275000000000004,3.1500000000000004,3.1725000000000003,3.1950000000000003,3.2175000000000002,3.24,3.2625000000000002,3.2850000000000006,3.3075000000000006,3.3300000000000005,3.3525000000000005,3.3750000000000004,3.3975000000000004,3.4200000000000004,3.4425000000000003,3.4650000000000003,3.4875000000000003,3.5100000000000002,3.5325000000000002,3.5550000000000006,3.5775000000000006,3.6000000000000005,3.6225000000000005,3.6450000000000005,3.6675000000000004,3.6900000000000004]
[null,6,162,26250,20620,0.39510000000000001,null,3.9510000000000001E-4,null,null,null,null,null,null,"DL-AC-FLEX2-LNDB-RGB",4.3,120,3.5833333333333335E-2,130,4.6583333333333332,"Constant Voltage",110,3.5833333333333335E-2,7.166666666666667E-2,0.10750000000000001,0.14333333333333334,0.17916666666666667,0.21500000000000002,0.25083333333333335,0.28666666666666668,0.32250000000000001,0.35833333333333334,0.39416666666666667,0.43000000000000005,0.46583333333333338,0.50166666666666671,0.53749999999999998,0.57333333333333336,0.60916666666666675,0.64500000000000002,0.6808333333333334,0.71666666666666667,0.75250000000000006,0.78833333333333333,0.82416666666666671,0.8600000000000001,0.89583333333333337,0.93166666666666675,0.96750000000000003,1.0033333333333334,1.0391666666666668,1.075,1.1108333333333333,1.1466666666666667,1.1825000000000001,1.2183333333333335,1.2541666666666667,1.29,1.3258333333333334,1.3616666666666668,1.3975,1.4333333333333333,1.4691666666666667,1.5050000000000001,1.5408333333333335,1.5766666666666667,1.6125,1.6483333333333334,1.6841666666666668,1.7200000000000002,1.7558333333333334,1.7916666666666667,1.8275000000000001,1.8633333333333335,1.8991666666666667,1.9350000000000001,1.9708333333333334,2.0066666666666668,2.0425,2.0783333333333336,2.1141666666666667,2.15,2.1858333333333335,2.2216666666666667,2.2575000000000003,2.2933333333333334,2.3291666666666666,2.3650000000000002,2.4008333333333334,2.436666666666667,2.4725000000000001,2.5083333333333333,2.5441666666666669,2.58,2.6158333333333337,2.6516666666666668,2.6875,2.7233333333333336,2.7591666666666668,2.7949999999999999,2.8308333333333335,2.8666666666666667,2.9025000000000003,2.9383333333333335,2.9741666666666666,3.0100000000000002,3.0458333333333334,3.081666666666667,3.1175000000000002,3.1533333333333333,3.1891666666666669,3.2250000000000001,3.2608333333333337,3.2966666666666669,3.3325,3.3683333333333336,3.4041666666666668,3.4400000000000004,3.4758333333333336,3.5116666666666667,3.5475000000000003,3.5833333333333335,3.6191666666666666,3.6550000000000002,3.6908333333333334,3.726666666666667,3.7625000000000002,3.7983333333333333,3.8341666666666669,3.87,3.9058333333333337,3.9416666666666669,3.9775,4.0133333333333336,4.0491666666666672,4.085,4.1208333333333336,4.1566666666666672,4.1924999999999999,4.2283333333333335,4.2641666666666671,4.3,4.3358333333333334,4.371666666666667,4.4075000000000006,4.4433333333333334,4.479166666666667,4.5150000000000006,4.5508333333333333,4.5866666666666669,4.6225000000000005,4.6583333333333332,4.6941666666666668,4.7300000000000004,4.7658333333333331,4.8016666666666667,4.8375000000000004,4.873333333333334,4.9091666666666667,4.9450000000000003,4.9808333333333339,5.0166666666666666,5.0525000000000002,5.0883333333333338,5.1241666666666665,5.16,5.1958333333333337,5.2316666666666674,5.2675000000000001,5.3033333333333337,5.3391666666666673,5.375,5.4108333333333336,5.4466666666666672,5.4824999999999999,5.5183333333333335,5.5541666666666671,5.59,5.6258333333333335,5.6616666666666671,5.6975000000000007,5.7333333333333334,5.769166666666667,5.8050000000000006,5.8408333333333333,5.8766666666666669]
[null,7,144.30000000000001,20820,16350,0.49819999999999998,null,4.9819999999999997E-4,null,null,null,null,null,null,null,null,null,null,null,null,null,null,0,0,0,0,0,0,0,0,0,0,0,0,0,0,0,0,0,0,0,0,0,0,0,0,0,0,0,0,0,0,0,0,0,0,0,0,0,0,0,0,0,0,0,0,0,0,0,0,0,0,0,0,0,0,0,0,0,0,0,0,0,0,0,0,0,0,0,0,0,0,0,0,0,0,0,0,0,0,0,0,0,0,0,0,0,0,0,0,0,0,0,0,0,0,0,0,0,0,0,0,0,0,0,0,0,0,0,0,0,0,0,0,0,0,0,0,0,0,0,0,0,0,0,0,0,0,0,0,0,0,0,0,0,0,0,0,0,0,0,0,0,0,0,0,0,0,0,0,0,0,0,0,0,0,0,0,0,0,0,0,0,0,0,0]
[null,8,128.5,16510,12970,0.62819999999999998,null,6.2819999999999998E-4,null,null,null,null,null,null,null,null,null,null,null,null,null,null,0,0,0,0,0,0,0,0,0,0,0,0,0,0,0,0,0,0,0,0,0,0,0,0,0,0,0,0,0,0,0,0,0,0,0,0,0,0,0,0,0,0,0,0,0,0,0,0,0,0,0,0,0,0,0,0,0,0,0,0,0,0,0,0,0,0,0,0,0,0,0,0,0,0,0,0,0,0,0,0,0,0,0,0,0,0,0,0,0,0,0,0,0,0,0,0,0,0,0,0,0,0,0,0,0,0,0,0,0,0,0,0,0,0,0,0,0,0,0,0,0,0,0,0,0,0,0,0,0,0,0,0,0,0,0,0,0,0,0,0,0,0,0,0,0,0,0,0,0,0,0,0,0,0,0,0,0,0,0,0,0,0,0,0]
[null,9,114.4,13090,10280,0.79210000000000003,null,7.9210000000000001E-4,null,null,null,null,null,null,null,null,null,null,null,null,null,null,0,0,0,0,0,0,0,0,0,0,0,0,0,0,0,0,0,0,0,0,0,0,0,0,0,0,0,0,0,0,0,0,0,0,0,0,0,0,0,0,0,0,0,0,0,0,0,0,0,0,0,0,0,0,0,0,0,0,0,0,0,0,0,0,0,0,0,0,0,0,0,0,0,0,0,0,0,0,0,0,0,0,0,0,0,0,0,0,0,0,0,0,0,0,0,0,0,0,0,0,0,0,0,0,0,0,0,0,0,0,0,0,0,0,0,0,0,0,0,0,0,0,0,0,0,0,0,0,0,0,0,0,0,0,0,0,0,0,0,0,0,0,0,0,0,0,0,0,0,0,0,0,0,0,0,0,0,0,0,0,0,0,0,0]
[null,10,101.9,10380,8155,0.99890000000000001,null,9.9890000000000005E-4,null,null,null,null,null,null,null,null,null,null,null,null,null,null,0,0,0,0,0,0,0,0,0,0,0,0,0,0,0,0,0,0,0,0,0,0,0,0,0,0,0,0,0,0,0,0,0,0,0,0,0,0,0,0,0,0,0,0,0,0,0,0,0,0,0,0,0,0,0,0,0,0,0,0,0,0,0,0,0,0,0,0,0,0,0,0,0,0,0,0,0,0,0,0,0,0,0,0,0,0,0,0,0,0,0,0,0,0,0,0,0,0,0,0,0,0,0,0,0,0,0,0,0,0,0,0,0,0,0,0,0,0,0,0,0,0,0,0,0,0,0,0,0,0,0,0,0,0,0,0,0,0,0,0,0,0,0,0,0,0,0,0,0,0,0,0,0,0,0,0,0,0,0,0,0,0,0,0]
[null,11,90.74,8234,6467,1.26,null,1.2600000000000001E-3,null,null,null,null,null,null,null,null,null,null,null,null,null,null,0,0,0,0,0,0,0,0,0,0,0,0,0,0,0,0,0,0,0,0,0,0,0,0,0,0,0,0,0,0,0,0,0,0,0,0,0,0,0,0,0,0,0,0,0,0,0,0,0,0,0,0,0,0,0,0,0,0,0,0,0,0,0,0,0,0,0,0,0,0,0,0,0,0,0,0,0,0,0,0,0,0,0,0,0,0,0,0,0,0,0,0,0,0,0,0,0,0,0,0,0,0,0,0,0,0,0,0,0,0,0,0,0,0,0,0,0,0,0,0,0,0,0,0,0,0,0,0,0,0,0,0,0,0,0,0,0,0,0,0,0,0,0,0,0,0,0,0,0,0,0,0,0,0,0,0,0,0,0,0,0,0,0,0]
[null,12,80.81,6530,5129,1.5880000000000001,null,1.588E-3,null,null,null,null,null,null,null,null,null,null,null,null,null,null,0,0,0,0,0,0,0,0,0,0,0,0,0,0,0,0,0,0,0,0,0,0,0,0,0,0,0,0,0,0,0,0,0,0,0,0,0,0,0,0,0,0,0,0,0,0,0,0,0,0,0,0,0,0,0,0,0,0,0,0,0,0,0,0,0,0,0,0,0,0,0,0,0,0,0,0,0,0,0,0,0,0,0,0,0,0,0,0,0,0,0,0,0,0,0,0,0,0,0,0,0,0,0,0,0,0,0,0,0,0,0,0,0,0,0,0,0,0,0,0,0,0,0,0,0,0,0,0,0,0,0,0,0,0,0,0,0,0,0,0,0,0,0,0,0,0,0,0,0,0,0,0,0,0,0,0,0,0,0,0,0,0,0,0]
[null,13,71.959999999999994,5178,4067,2.0030000000000001,null,2.003E-3,null,null,null,null,null,null,null,null,null,null,null,null,null,null,0,0,0,0,0,0,0,0,0,0,0,0,0,0,0,0,0,0,0,0,0,0,0,0,0,0,0,0,0,0,0,0,0,0,0,0,0,0,0,0,0,0,0,0,0,0,0,0,0,0,0,0,0,0,0,0,0,0,0,0,0,0,0,0,0,0,0,0,0,0,0,0,0,0,0,0,0,0,0,0,0,0,0,0,0,0,0,0,0,0,0,0,0,0,0,0,0,0,0,0,0,0,0,0,0,0,0,0,0,0,0,0,0,0,0,0,0,0,0,0,0,0,0,0,0,0,0,0,0,0,0,0,0,0,0,0,0,0,0,0,0,0,0,0,0,0,0,0,0,0,0,0,0,0,0,0,0,0,0,0,0,0,0,0]
[null,14,64.08,4107,3225,2.5249999999999999,null,2.5249999999999999E-3,null,null,null,null,null,null,null,null,null,null,null,null,null,null,0,0,0,0,0,0,0,0,0,0,0,0,0,0,0,0,0,0,0,0,0,0,0,0,0,0,0,0,0,0,0,0,0,0,0,0,0,0,0,0,0,0,0,0,0,0,0,0,0,0,0,0,0,0,0,0,0,0,0,0,0,0,0,0,0,0,0,0,0,0,0,0,0,0,0,0,0,0,0,0,0,0,0,0,0,0,0,0,0,0,0,0,0,0,0,0,0,0,0,0,0,0,0,0,0,0,0,0,0,0,0,0,0,0,0,0,0,0,0,0,0,0,0,0,0,0,0,0,0,0,0,0,0,0,0,0,0,0,0,0,0,0,0,0,0,0,0,0,0,0,0,0,0,0,0,0,0,0,0,0,0,0,0,0]
[null,15,57.07,3257,2558,3.1840000000000002,null,3.1840000000000002E-3]
[null,16,50.82,2583,2028,4.016,null,4.0159999999999996E-3]
[null,17,45.26,2048,1609,5.0640000000000001,null,5.0639999999999999E-3]
[null,18,40.299999999999997,1624,1276,6.3849999999999998,null,6.3850000000000001E-3]
[null,19,35.89,1288,1012,8.0510000000000002,null,8.0510000000000009E-3]
[null,20,31.96,1022,802.3,10.15,null,1.0150000000000001E-2]
[null,21,28.46,810.1,636.29999999999995,12.8,null,1.2800000000000001E-2]
[null,22,25.35,642.4,504.6,16.14,null,1.6140000000000002E-2]
[null,23,22.57,509.5,400.2,20.36,null,2.036E-2]
[null,24,20.100000000000001,404,317.3,25.67,null,2.5670000000000002E-2,null,null,null,"EXT48",20]
[null,25,17.899999999999999,320.39999999999998,251.7,32.369999999999997,null,3.2369999999999996E-2,null,null,null,"EXT96",20]
[null,26,15.94,254.1,199.6,40.81,null,4.0809999999999999E-2,null,null,null,"INFINA/ACX PC",18]
[null,27,14.2,201.5,158.30000000000001,51.47,null,5.1470000000000002E-2,null,null,null,"CTA",22]
[null,28,12.64,159.80000000000001,125.5,64.900000000000006,null,6.4899999999999999E-2,null,null,null,"RGB",22]
[null,29,11.26,126.7,99.53,81.83,null,8.183E-2,null,null,null,"RGBW",22]
[null,30,10.029999999999999,100.5,78.94,103.2,null,0.1032,null,null,null,"RGBWW",22]
[null,31,8.9280000000000008,79.7,62.6,130.1,null,0.13009999999999999,null,null,null,"HW-20AWG",20]
[null,32,7.95,63.21,49.64,164.1,null,0.1641,null,null,null,"HW-18AWG",18]
[null,33,7.08,50.13,39.369999999999997,206.9,null,0.2069,null,null,null,"HW-16AWG",16]
[null,34,6.3049999999999997,39.75,31.22,260.89999999999998,null,0.26089999999999997,null,null,null,"HW-14AWG",14]
[null,35,5.6150000000000002,31.52,24.76,329,null,0.32900000000000001,null,null,null,"HW-12AWG",12]
[null,36,5,25,19.64,414.8,null,0.4148,null,null,null,"HW-10AWG",10]
[null,37,4.4530000000000003,19.829999999999998,15.57,523.1,null,0.52310000000000001]
[null,38,3.9649999999999999,15.72,12.35,659.6,null,0.65960000000000008]
[null,39,3.5310000000000001,12.47,9.7929999999999993,831.8,null,0.83179999999999998]
[null,40,3.145,9.8879999999999999,7.766,1049,null,1.0489999999999999,null,null,{"$f":"IF(N49>'VOLT LOSS CAL'!$C$16,1,0)","v":{"$error":"#VALUE!"}},10,{"$f":"IFERROR(('VOLT LOSS CAL'!$C$15*Q69),\"\")","v":""},{"$f":"'VOLT LOSS CAL'!$C$15-DATA!M49","v":{"$error":"#VALUE!"}}]
[null,null,null,null,null,null,null,null,null,null,{"$f":"IF(N50>'VOLT LOSS CAL'!$C$16,1,0)","v":{"$error":"#VALUE!"}},12,{"$f":"IFERROR(('VOLT LOSS CAL'!$C$15*R69),\"\")","v":""},{"$f":"'VOLT LOSS CAL'!$C$15-DATA!M50","v":{"$error":"#VALUE!"}}]
[null,null,null,null,null,null,null,null,null,null,{"$f":"IF(N51>'VOLT LOSS CAL'!$C$16,1,0)","v":{"$error":"#VALUE!"}},14,{"$f":"IFERROR(('VOLT LOSS CAL'!$C$15*S69),\"\")","v":""},{"$f":"'VOLT LOSS CAL'!$C$15-DATA!M51","v":{"$error":"#VALUE!"}}]
[null,null,null,null,null,null,null,null,null,null,{"$f":"IF(N52>'VOLT LOSS CAL'!$C$16,1,0)","v":{"$error":"#VALUE!"}},16,{"$f":"IFERROR(('VOLT LOSS CAL'!$C$15*T69),\"\")","v":""},{"$f":"'VOLT LOSS CAL'!$C$15-DATA!M52","v":{"$error":"#VALUE!"}},null,null,"Ohms/Ft",{"$f":"IFERROR(VLOOKUP('VOLT LOSS CAL'!C23,DATA!B6:$H$49,7,FALSE),\"\")","v":4.901E-5}]
[null,null,null,null,null,null,null,null,null,null,{"$f":"IF(N53>'VOLT LOSS CAL'!$C$16,1,0)","v":{"$error":"#VALUE!"}},18,{"$f":"IFERROR(('VOLT LOSS CAL'!$C$15*U69),\"\")","v":""},{"$f":"'VOLT LOSS CAL'!$C$15-DATA!M53","v":{"$error":"#VALUE!"}},null,null,"Ohms",{"$f":"IFERROR((('VOLT LOSS CAL'!C24*R52)+('VOLT LOSS CAL'!C12*DATA!H27)*2),\"\")","v":0}]
[null,null,null,null,null,null,null,null,null,null,{"$f":"IF(N54>'VOLT LOSS CAL'!$C$16,1,0)","v":{"$error":"#VALUE!"}},20,{"$f":"IFERROR(('VOLT LOSS CAL'!$C$15*V69),\"\")","v":""},{"$f":"'VOLT LOSS CAL'!$C$15-DATA!M54","v":{"$error":"#VALUE!"}},null,null,"Volt Drop",{"$f":"IFERROR((('VOLT LOSS CAL'!C21*DATA!R53)/'VOLT LOSS CAL'!C15),\"\")","v":""}]
[null,null,null,null,null,null,null,null,null,null,{"$f":"IF(N55>'VOLT LOSS CAL'!$C$16,1,0)","v":{"$error":"#VALUE!"}},22,{"$f":"IFERROR(('VOLT LOSS CAL'!$C$15*W69),\"\")","v":""},{"$f":"'VOLT LOSS CAL'!$C$15-DATA!M55","v":{"$error":"#VALUE!"}},null,null,"Volt Drop (V)",{"$f":"IFERROR(('VOLT LOSS CAL'!C15*DATA!R54),\"\")","v":""}]
[null,null,null,null,null,null,null,null,null,null,null,null,null,null,null,null,"Volt Out (V)",{"$f":"IFERROR(('VOLT LOSS CAL'!C15-DATA!R55),\"\")","v":""}]
[]
[null,null,null,null,null,null,null,null,null,null,null,{"$f":"IF(N49>'VOLT LOSS CAL'!C16,\"10AWG \",\"\")&IF(DATA!N50>'VOLT LOSS CAL'!C16,\"12AWG \",\"\")&IF(DATA!N51>'VOLT LOSS CAL'!C16,\"14AWG \",\"\")&IF(DATA!N52>'VOLT LOSS CAL'!C16,\"16AWG \",\"\")&IF(DATA!N53>'VOLT LOSS CAL'!C16,\"18AWG \",\"\")&IF(DATA!N54>'VOLT LOSS CAL'!C16,\"20AWG \",\"\")","v":{"$error":"#VALUE!"}},null,null,null,null,"Constant Current",null,{"$f":"24-U58","v":23.04},null,{"$f":"24*4%","v":0.96}]
[null,null,null,null,null,null,null,null,null,null,null,"Supplied by other",null,null,null,null,"Constant Voltage",null,{"$f":"24-U59","v":23.4},null,{"$f":"24*2.5%","v":0.60000000000000009}]
[null,null,null,null,null,null,null,null,null,null,null,null,null,null,null,null,"Constant Current",null,{"$f":"163-U60","v":158.11000000000001},null,{"$f":"163*3%","v":4.8899999999999997}]
[null,null,null,null,null,null,null,null,null,null,null,{"$f":"CONCATENATE(L58,L59)","v":{"$error":"#VALUE!"}},null,null,null,null,"Constant Voltage",null,{"$f":"163-U61","v":158.11000000000001},null,{"$f":"163*3%","v":4.8899999999999997}]
[]
[]
[]
[]
[null,null,null,null,null,null,null,null,null,null,null,null,null,null,null,null,10,12,14,16,18,20,22]
[null,null,null,null,null,null,null,null,null,null,null,null,null,null,null,null,{"$f":"H19","v":9.9890000000000005E-4},{"$f":"H21","v":1.588E-3},{"$f":"H23","v":2.5249999999999999E-3},{"$f":"H25","v":4.0159999999999996E-3},{"$f":"H27","v":6.3850000000000001E-3},{"$f":"H29","v":1.0150000000000001E-2},{"$f":"H31","v":1.6140000000000002E-2}]
[null,null,null,null,null,null,null,null,null,null,null,null,null,null,null,null,{"$f":"IFERROR((('VOLT LOSS CAL'!$C$24*Q67)*2),\"\")","v":0},{"$f":"IFERROR((('VOLT LOSS CAL'!$C$24*R67)*2),\"\")","v":0},{"$f":"IFERROR((('VOLT LOSS CAL'!$C$24*S67)*2),\"\")","v":0},{"$f":"IFERROR((('VOLT LOSS CAL'!$C$24*T67)*2),\"\")","v":0},{"$f":"IFERROR((('VOLT LOSS CAL'!$C$24*U67)*2),\"\")","v":0},{"$f":"IFERROR((('VOLT LOSS CAL'!$C$24*V67)*2),\"\")","v":0},{"$f":"IFERROR((('VOLT LOSS CAL'!$C$24*W67)*2),\"\")","v":0}]
[null,null,null,null,null,null,null,null,null,null,null,null,null,null,null,null,{"$f":"IFERROR((('VOLT LOSS CAL'!$C$21*Q68)/'VOLT LOSS CAL'!$C$15),\"\")","v":""},{"$f":"IFERROR((('VOLT LOSS CAL'!$C$21*R68)/'VOLT LOSS CAL'!$C$15),\"\")","v":""},{"$f":"IFERROR((('VOLT LOSS CAL'!$C$21*S68)/'VOLT LOSS CAL'!$C$15),\"\")","v":""},{"$f":"IFERROR((('VOLT LOSS CAL'!$C$21*T68)/'VOLT LOSS CAL'!$C$15),\"\")","v":""},{"$f":"IFERROR((('VOLT LOSS CAL'!$C$21*U68)/'VOLT LOSS CAL'!$C$15),\"\")","v":""},{"$f":"IFERROR((('VOLT LOSS CAL'!$C$21*V68)/'VOLT LOSS CAL'!$C$15),\"\")","v":""},{"$f":"IFERROR((('VOLT LOSS CAL'!$C$21*W68)/'VOLT LOSS CAL'!$C$15),\"\")","v":""}]
[]
[]
[]
[]
[]
[]
[]
[]
[]
[]
[null,null,null,null,null,null,null,null,null,null,null,null,18,1]
[null,null,null,null,null,null,null,null,null,null,null,null,16,2]
[null,null,null,null,null,null,null,null,null,null,null,null,14,3]
[null,null,null,null,null,null,null,null,null,null,null,null,12,4]
[null,null,null,null,null,null,null,null,null,null,null,null,10,5]
[null,null,null,null,null,null,null,null,null,null,null,null,null,6]
[null,null,null,null,null,null,null,null,null,null,null,null,null,7]
[null,null,null,null,null,null,null,null,null,null,null,null,null,8]
[null,null,null,null,null,null,null,null,null,null,null,null,null,9]
[null,null,null,null,null,null,null,null,null,null,null,null,null,10]
[null,null,null,null,null,null,null,null,null,null,null,null,null,11]
[null,null,null,null,null,null,null,null,null,null,null,null,null,12]
[null,null,null,null,null,null,null,null,null,null,null,null,null,13]
[null,null,null,null,null,null,null,null,null,null,null,null,null,14]
[null,null,null,null,null,null,null,null,null,null,null,null,null,15]
[null,null,null,null,null,null,null,null,null,null,null,null,null,16]
[null,null,null,null,null,null,null,null,null,null,null,null,null,17]
[null,null,null,null,null,null,null,null,null,null,null,null,null,18]
[null,null,null,null,null,null,null,null,null,null,null,null,null,19]
[null,null,null,null,null,null,null,null,null,null,null,null,null,20]
[null,null,null,null,null,null,null,null,null,null,null,null,null,21]
[null,null,null,null,null,null,null,null,null,null,null,null,null,22]
[null,null,null,null,null,null,null,null,null,null,null,null,null,23]
[null,null,null,null,null,null,null,null,null,null,null,null,null,24]
[null,null,null,null,null,null,null,null,null,null,null,null,null,25]
[null,null,null,null,null,null,null,null,null,null,null,null,null,26]
[null,null,null,null,null,null,null,null,null,null,null,null,null,27]
[null,null,null,null,null,null,null,null,null,null,null,null,null,28]
[null,null,null,null,null,null,null,null,null,null,null,null,null,29]
[null,null,null,null,null,null,null,null,null,null,null,null,null,30]
[null,null,null,null,null,null,null,null,null,null,null,null,null,31]
[null,null,null,null,null,null,null,null,null,null,null,null,null,32]
[null,null,null,null,null,null,null,null,null,null,null,null,null,33]
[null,null,null,null,null,null,null,null,null,null,null,null,null,34]
[null,null,null,null,null,null,null,null,null,null,null,null,null,35]
[null,null,null,null,null,null,null,null,null,null,null,null,null,36]
[null,null,null,null,null,null,null,null,null,null,null,null,null,37]
[null,null,null,null,null,null,null,null,null,null,null,null,null,38]
[null,null,null,null,null,null,null,null,null,null,null,null,null,39]
[null,null,null,null,null,null,null,null,null,null,null,null,null,40]
[null,null,null,null,null,null,null,null,null,null,null,null,null,41]
[null,null,null,null,null,null,null,null,null,null,null,null,null,42]
[null,null,null,null,null,null,null,null,null,null,null,null,null,43]
[null,null,null,null,null,null,null,null,null,null,null,null,null,44]
[null,null,null,null,null,null,null,null,null,null,null,null,null,45]
[null,null,null,null,null,null,null,null,null,null,null,null,null,46]
[null,null,null,null,null,null,null,null,null,null,null,null,null,47]
[null,null,null,null,null,null,null,null,null,null,null,null,null,48]
[null,null,null,null,null,null,null,null,null,null,null,null,null,49]
[null,null,null,null,null,null,null,null,null,null,null,null,null,50]
[null,null,null,null,null,null,null,null,null,null,null,null,null,51]
[null,null,null,null,null,null,null,null,null,null,null,null,null,52]
[null,null,null,null,null,null,null,null,null,null,null,null,null,53]
[null,null,null,null,null,null,null,null,null,null,null,null,null,54]
[null,null,null,null,null,null,null,null,null,null,null,null,null,55]
[null,null,null,null,null,null,null,null,null,null,null,null,null,56]
[null,null,null,null,null,null,null,null,null,null,null,null,null,57]
[null,null,null,null,null,null,null,null,null,null,null,null,null,58]
[null,null,null,null,null,null,null,null,null,null,null,null,null,59]
[null,null,null,null,null,null,null,null,null,null,null,null,null,60]
[null,null,null,null,null,null,null,null,null,null,null,null,null,61]
[null,null,null,null,null,null,null,null,null,null,null,null,null,62]
[null,null,null,null,null,null,null,null,null,null,null,null,null,63]
[null,null,null,null,null,null,null,null,null,null,null,null,null,64]
[null,null,null,null,null,null,null,null,null,null,null,null,null,65]
[null,null,null,null,null,null,null,null,null,null,null,null,null,66]
[null,null,null,null,null,null,null,null,null,null,null,null,null,67]
[null,null,null,null,null,null,null,null,null,null,null,null,null,68]
[null,null,null,null,null,null,null,null,null,null,null,null,null,69]
[null,null,null,null,null,null,null,null,null,null,null,null,null,70]
[null,null,null,null,null,null,null,null,null,null,null,null,null,71]
[null,null,null,null,null,null,null,null,null,null,null,null,null,72]
[null,null,null,null,null,null,null,null,null,null,null,null,null,73]
[null,null,null,null,null,null,null,null,null,null,null,null,null,74]
[null,null,null,null,null,null,null,null,null,null,null,null,null,75]
[null,null,null,null,null,null,null,null,null,null,null,null,null,76]
[null,null,null,null,null,null,null,null,null,null,null,null,null,77]
[null,null,null,null,null,null,null,null,null,null,null,null,null,78]
[null,null,null,null,null,null,null,null,null,null,null,null,null,79]
[null,null,null,null,null,null,null,null,null,null,null,null,null,80]
[null,null,null,null,null,null,null,null,null,null,null,null,null,81]
[null,null,null,null,null,null,null,null,null,null,null,null,null,82]
[null,null,null,null,null,null,null,null,null,null,null,null,null,83]
[null,null,null,null,null,null,null,null,null,null,null,null,null,84]
[null,null,null,null,null,null,null,null,null,null,null,null,null,85]
[null,null,null,null,null,null,null,null,null,null,null,null,null,86]
[null,null,null,null,null,null,null,null,null,null,null,null,null,87]
[null,null,null,null,null,null,null,null,null,null,null,null,null,88]
[null,null,null,null,null,null,null,null,null,null,null,null,null,89]
[null,null,null,null,null,null,null,null,null,null,null,null,null,90]
[null,null,null,null,null,null,null,null,null,null,null,null,null,91]
[null,null,null,null,null,null,null,null,null,null,null,null,null,92]
[null,null,null,null,null,null,null,null,null,null,null,null,null,93]
[null,null,null,null,null,null,null,null,null,null,null,null,null,94]
[null,null,null,null,null,null,null,null,null,null,null,null,null,95]
[null,null,null,null,null,null,null,null,null,null,null,null,null,96]
[null,null,null,null,null,null,null,null,null,null,null,null,null,97]
[null,null,null,null,null,null,null,null,null,null,null,null,null,98]
[null,null,null,null,null,null,null,null,null,null,null,null,null,99]
[null,null,null,null,null,null,null,null,null,null,null,null,null,100]
[null,null,null,null,null,null,null,null,null,null,null,null,null,101]
[null,null,null,null,null,null,null,null,null,null,null,null,null,102]
[null,null,null,null,null,null,null,null,null,null,null,null,null,103]
[null,null,null,null,null,null,null,null,null,null,null,null,null,104]
[null,null,null,null,null,null,null,null,null,null,null,null,null,105]
[null,null,null,null,null,null,null,null,null,null,null,null,null,106]
[null,null,null,null,null,null,null,null,null,null,null,null,null,107]
[null,null,null,null,null,null,null,null,null,null,null,null,null,108]
[null,null,null,null,null,null,null,null,null,null,null,null,null,109]
[null,null,null,null,null,null,null,null,null,null,null,null,null,110]
[null,null,null,null,null,null,null,null,null,null,null,null,null,111]
[null,null,null,null,null,null,null,null,null,null,null,null,null,112]
[null,null,null,null,null,null,null,null,null,null,null,null,null,113]
[null,null,null,null,null,null,null,null,null,null,null,null,null,114]
[null,null,null,null,null,null,null,null,null,null,null,null,null,115]
[null,null,null,null,null,null,null,null,null,null,null,null,null,116]
[null,null,null,null,null,null,null,null,null,null,null,null,null,117]
[null,null,null,null,null,null,null,null,null,null,null,null,null,118]
[null,null,null,null,null,null,null,null,null,null,null,null,null,119]
[null,null,null,null,null,null,null,null,null,null,null,null,null,120]
[null,null,null,null,null,null,null,null,null,null,null,null,null,121]
[null,null,null,null,null,null,null,null,null,null,null,null,null,122]
[null,null,null,null,null,null,null,null,null,null,null,null,null,123]
[null,null,null,null,null,null,null,null,null,null,null,null,null,124]
[null,null,null,null,null,null,null,null,null,null,null,null,null,125]
[null,null,null,null,null,null,null,null,null,null,null,null,null,126]
[null,null,null,null,null,null,null,null,null,null,null,null,null,127]
[null,null,null,null,null,null,null,null,null,null,null,null,null,128]
[null,null,null,null,null,null,null,null,null,null,null,null,null,129]
[null,null,null,null,null,null,null,null,null,null,null,null,null,130]
[null,null,null,null,null,null,null,null,null,null,null,null,null,131]
[null,null,null,null,null,null,null,null,null,null,null,null,null,132]
[null,null,null,null,null,null,null,null,null,null,null,null,null,133]
[null,null,null,null,null,null,null,null,null,null,null,null,null,134]
[null,null,null,null,null,null,null,null,null,null,null,null,null,135]
[null,null,null,null,null,null,null,null,null,null,null,null,null,136]
[null,null,null,null,null,null,null,null,null,null,null,null,null,137]
[null,null,null,null,null,null,null,null,null,null,null,null,null,138]
[null,null,null,null,null,null,null,null,null,null,null,null,null,139]
[null,null,null,null,null,null,null,null,null,null,null,null,null,140]
[null,null,null,null,null,null,null,null,null,null,null,null,null,141]
[null,null,null,null,null,null,null,null,null,null,null,null,null,142]
[null,null,null,null,null,null,null,null,null,null,null,null,null,143]
[null,null,null,null,null,null,null,null,null,null,null,null,null,144]
[null,null,null,null,null,null,null,null,null,null,null,null,null,145]
[null,null,null,null,null,null,null,null,null,null,null,null,null,146]
[null,null,null,null,null,null,null,null,null,null,null,null,null,147]
[null,null,null,null,null,null,null,null,null,null,null,null,null,148]
[null,null,null,null,null,null,null,null,null,null,null,null,null,149]
[null,null,null,null,null,null,null,null,null,null,null,null,null,150]
[null,null,null,null,null,null,null,null,null,null,null,null,null,151]
[null,null,null,null,null,null,null,null,null,null,null,null,null,152]
[null,null,null,null,null,null,null,null,null,null,null,null,null,153]
[null,null,null,null,null,null,null,null,null,null,null,null,null,154]
[null,null,null,null,null,null,null,null,null,null,null,null,null,155]
[null,null,null,null,null,null,null,null,null,null,null,null,null,156]
[null,null,null,null,null,null,null,null,null,null,null,null,null,157]
[null,null,null,null,null,null,null,null,null,null,null,null,null,158]
[null,null,null,null,null,null,null,null,null,null,null,null,null,159]
[null,null,null,null,null,null,null,null,null,null,null,null,null,160]
[null,null,null,null,null,null,null,null,null,null,null,null,null,161]
[null,null,null,null,null,null,null,null,null,null,null,null,null,162]
[null,null,null,null,null,null,null,null,null,null,null,null,null,163]
[null,null,null,null,null,null,null,null,null,null,null,null,null,164]
[null,null,null,null,null,null,null,null,null,null,null,null,null,165]
[null,null,null,null,null,null,null,null,null,null,null,null,null,166]
[null,null,null,null,null,null,null,null,null,null,null,null,null,167]
[null,null,null,null,null,null,null,null,null,null,null,null,null,168]
[null,null,null,null,null,null,null,null,null,null,null,null,null,169]
[null,null,null,null,null,null,null,null,null,null,null,null,null,170]
[null,null,null,null,null,null,null,null,null,null,null,null,null,171]
[null,null,null,null,null,null,null,null,null,null,null,null,null,172]
[null,null,null,null,null,null,null,null,null,null,null,null,null,173]
[null,null,null,null,null,null,null,null,null,null,null,null,null,174]
[null,null,null,null,null,null,null,null,null,null,null,null,null,175]
[null,null,null,null,null,null,null,null,null,null,null,null,null,176]
[null,null,null,null,null,null,null,null,null,null,null,null,null,177]
[null,null,null,null,null,null,null,null,null,null,null,null,null,178]
[null,null,null,null,null,null,null,null,null,null,null,null,null,179]
[null,null,null,null,null,null,null,null,null,null,null,null,null,180]
[null,null,null,null,null,null,null,null,null,null,null,null,null,181]
[null,null,null,null,null,null,null,null,null,null,null,null,null,182]
[null,null,null,null,null,null,null,null,null,null,null,null,null,183]
[null,null,null,null,null,null,null,null,null,null,null,null,null,184]
[null,null,null,null,null,null,null,null,null,null,null,null,null,185]
[null,null,null,null,null,null,null,null,null,null,null,null,null,186]
[null,null,null,null,null,null,null,null,null,null,null,null,null,187]
[null,null,null,null,null,null,null,null,null,null,null,null,null,188]
[null,null,null,null,null,null,null,null,null,null,null,null,null,189]
[null,null,null,null,null,null,null,null,null,null,null,null,null,190]
[null,null,null,null,null,null,null,null,null,null,null,null,null,191]
[null,null,null,null,null,null,null,null,null,null,null,null,null,192]
[null,null,null,null,null,null,null,null,null,null,null,null,null,193]
[null,null,null,null,null,null,null,null,null,null,null,null,null,194]
[null,null,null,null,null,null,null,null,null,null,null,null,null,195]
[null,null,null,null,null,null,null,null,null,null,null,null,null,196]
[null,null,null,null,null,null,null,null,null,null,null,null,null,197]
[null,null,null,null,null,null,null,null,null,null,null,null,null,198]
[null,null,null,null,null,null,null,null,null,null,null,null,null,199]
[null,null,null,null,null,null,null,null,null,null,null,null,null,200]
[null,null,null,null,null,null,null,null,null,null,null,null,null,201]
[null,null,null,null,null,null,null,null,null,null,null,null,null,202]
[null,null,null,null,null,null,null,null,null,null,null,null,null,203]
[null,null,null,null,null,null,null,null,null,null,null,null,null,204]
[null,null,null,null,null,null,null,null,null,null,null,null,null,205]
[null,null,null,null,null,null,null,null,null,null,null,null,null,206]
[null,null,null,null,null,null,null,null,null,null,null,null,null,207]
[null,null,null,null,null,null,null,null,null,null,null,null,null,208]
[null,null,null,null,null,null,null,null,null,null,null,null,null,209]
[null,null,null,null,null,null,null,null,null,null,null,null,null,210]
[null,null,null,null,null,null,null,null,null,null,null,null,null,211]
[null,null,null,null,null,null,null,null,null,null,null,null,null,212]
[null,null,null,null,null,null,null,null,null,null,null,null,null,213]
[null,null,null,null,null,null,null,null,null,null,null,null,null,214]
[null,null,null,null,null,null,null,null,null,null,null,null,null,215]
[null,null,null,null,null,null,null,null,null,null,null,null,null,216]
[null,null,null,null,null,null,null,null,null,null,null,null,null,217]
[null,null,null,null,null,null,null,null,null,null,null,null,null,218]
[null,null,null,null,null,null,null,null,null,null,null,null,null,219]
[null,null,null,null,null,null,null,null,null,null,null,null,null,220]
[null,null,null,null,null,null,null,null,null,null,null,null,null,221]
[null,null,null,null,null,null,null,null,null,null,null,null,null,222]
[null,null,null,null,null,null,null,null,null,null,null,null,null,223]
[null,null,null,null,null,null,null,null,null,null,null,null,null,224]
[null,null,null,null,null,null,null,null,null,null,null,null,null,225]
[null,null,null,null,null,null,null,null,null,null,null,null,null,226]
[null,null,null,null,null,null,null,null,null,null,null,null,null,227]
[null,null,null,null,null,null,null,null,null,null,null,null,null,228]
[null,null,null,null,null,null,null,null,null,null,null,null,null,229]
[null,null,null,null,null,null,null,null,null,null,null,null,null,230]
[null,null,null,null,null,null,null,null,null,null,null,null,null,231]
[null,null,null,null,null,null,null,null,null,null,null,null,null,232]
[null,null,null,null,null,null,null,null,null,null,null,null,null,233]
[null,null,null,null,null,null,null,null,null,null,null,null,null,234]
[null,null,null,null,null,null,null,null,null,null,null,null,null,235]
[null,null,null,null,null,null,null,null,null,null,null,null,null,236]
[null,null,null,null,null,null,null,null,null,null,null,null,null,237]
[null,null,null,null,null,null,null,null,null,null,null,null,null,238]
[null,null,null,null,null,null,null,null,null,null,null,null,null,239]
[null,null,null,null,null,null,null,null,null,null,null,null,null,240]
[null,null,null,null,null,null,null,null,null,null,null,null,null,241]
[null,null,null,null,null,null,null,null,null,null,null,null,null,242]
[null,null,null,null,null,null,null,null,null,null,null,null,null,243]
[null,null,null,null,null,null,null,null,null,null,null,null,null,244]
[null,null,null,null,null,null,null,null,null,null,null,null,null,245]
[null,null,null,null,null,null,null,null,null,null,null,null,null,246]
[null,null,null,null,null,null,null,null,null,null,null,null,null,247]
[null,null,null,null,null,null,null,null,null,null,null,null,null,248]
[null,null,null,null,null,null,null,null,null,null,null,null,null,249]
[null,null,null,null,null,null,null,null,null,null,null,null,null,250]
[null,null,null,null,null,null,null,null,null,null,null,null,null,251]
[null,null,null,null,null,null,null,null,null,null,null,null,null,252]
[null,null,null,null,null,null,null,null,null,null,null,null,null,253]
[null,null,null,null,null,null,null,null,null,null,null,null,null,254]
[null,null,null,null,null,null,null,null,null,null,null,null,null,255]
[null,null,null,null,null,null,null,null,null,null,null,null,null,256]
[null,null,null,null,null,null,null,null,null,null,null,null,null,257]
[null,null,null,null,null,null,null,null,null,null,null,null,null,258]
[null,null,null,null,null,null,null,null,null,null,null,null,null,259]
[null,null,null,null,null,null,null,null,null,null,null,null,null,260]
[null,null,null,null,null,null,null,null,null,null,null,null,null,261]
[null,null,null,null,null,null,null,null,null,null,null,null,null,262]
[null,null,null,null,null,null,null,null,null,null,null,null,null,263]
[null,null,null,null,null,null,null,null,null,null,null,null,null,264]
[null,null,null,null,null,null,null,null,null,null,null,null,null,265]
[null,null,null,null,null,null,null,null,null,null,null,null,null,266]
[null,null,null,null,null,null,null,null,null,null,null,null,null,267]
[null,null,null,null,null,null,null,null,null,null,null,null,null,268]
[null,null,null,null,null,null,null,null,null,null,null,null,null,269]
[null,null,null,null,null,null,null,null,null,null,null,null,null,270]
[null,null,null,null,null,null,null,null,null,null,null,null,null,271]
[null,null,null,null,null,null,null,null,null,null,null,null,null,272]
[null,null,null,null,null,null,null,null,null,null,null,null,null,273]
[null,null,null,null,null,null,null,null,null,null,null,null,null,274]
[null,null,null,null,null,null,null,null,null,null,null,null,null,275]
[null,null,null,null,null,null,null,null,null,null,null,null,null,276]
[null,null,null,null,null,null,null,null,null,null,null,null,null,277]
[null,null,null,null,null,null,null,null,null,null,null,null,null,278]
[null,null,null,null,null,null,null,null,null,null,null,null,null,279]
[null,null,null,null,null,null,null,null,null,null,null,null,null,280]
[null,null,null,null,null,null,null,null,null,null,null,null,null,281]
[null,null,null,null,null,null,null,null,null,null,null,null,null,282]
[null,null,null,null,null,null,null,null,null,null,null,null,null,283]
[null,null,null,null,null,null,null,null,null,null,null,null,null,284]
[null,null,null,null,null,null,null,null,null,null,null,null,null,285]
[null,null,null,null,null,null,null,null,null,null,null,null,null,286]
[null,null,null,null,null,null,null,null,null,null,null,null,null,287]
[null,null,null,null,null,null,null,null,null,null,null,null,null,288]
[null,null,null,null,null,null,null,null,null,null,null,null,null,289]
[null,null,null,null,null,null,null,null,null,null,null,null,null,290]
[null,null,null,null,null,null,null,null,null,null,null,null,null,291]
[null,null,null,null,null,null,null,null,null,null,null,null,null,292]
[null,null,null,null,null,null,null,null,null,null,null,null,null,293]
[null,null,null,null,null,null,null,null,null,null,null,null,null,294]
[null,null,null,null,null,null,null,null,null,null,null,null,null,295]
[null,null,null,null,null,null,null,null,null,null,null,null,null,296]
[null,null,null,null,null,null,null,null,null,null,null,null,null,297]
[null,null,null,null,null,null,null,null,null,null,null,null,null,298]
[null,null,null,null,null,null,null,null,null,null,null,null,null,299]
[null,null,null,null,null,null,null,null,null,null,null,null,null,300]
[null,null,null,null,null,null,null,null,null,null,null,null,null,301]
[null,null,null,null,null,null,null,null,null,null,null,null,null,302]
[null,null,null,null,null,null,null,null,null,null,null,null,null,303]
[null,null,null,null,null,null,null,null,null,null,null,null,null,304]
[null,null,null,null,null,null,null,null,null,null,null,null,null,305]
[null,null,null,null,null,null,null,null,null,null,null,null,null,306]
[null,null,null,null,null,null,null,null,null,null,null,null,null,307]
[null,null,null,null,null,null,null,null,null,null,null,null,null,308]
[null,null,null,null,null,null,null,null,null,null,null,null,null,309]
[null,null,null,null,null,null,null,null,null,null,null,null,null,310]
[null,null,null,null,null,null,null,null,null,null,null,null,null,311]
[null,null,null,null,null,null,null,null,null,null,null,null,null,312]
[null,null,null,null,null,null,null,null,null,null,null,null,null,313]
[null,null,null,null,null,null,null,null,null,null,null,null,null,314]
[null,null,null,null,null,null,null,null,null,null,null,null,null,315]
[null,null,null,null,null,null,null,null,null,null,null,null,null,316]
[null,null,null,null,null,null,null,null,null,null,null,null,null,317]
[null,null,null,null,null,null,null,null,null,null,null,null,null,318]
[null,null,null,null,null,null,null,null,null,null,null,null,null,319]
[null,null,null,null,null,null,null,null,null,null,null,null,null,320]
[null,null,null,null,null,null,null,null,null,null,null,null,null,321]
[null,null,null,null,null,null,null,null,null,null,null,null,null,322]
[null,null,null,null,null,null,null,null,null,null,null,null,null,323]
[null,null,null,null,null,null,null,null,null,null,null,null,null,324]
[null,null,null,null,null,null,null,null,null,null,null,null,null,325]
[null,null,null,null,null,null,null,null,null,null,null,null,null,326]
[null,null,null,null,null,null,null,null,null,null,null,null,null,327]
[null,null,null,null,null,null,null,null,null,null,null,null,null,328]
[null,null,null,null,null,null,null,null,null,null,null,null,null,329]
[null,null,null,null,null,null,null,null,null,null,null,null,null,330]
[null,null,null,null,null,null,null,null,null,null,null,null,null,331]
[null,null,null,null,null,null,null,null,null,null,null,null,null,332]
[null,null,null,null,null,null,null,null,null,null,null,null,null,333]
[null,null,null,null,null,null,null,null,null,null,null,null,null,334]
[null,null,null,null,null,null,null,null,null,null,null,null,null,335]
[null,null,null,null,null,null,null,null,null,null,null,null,null,336]
[null,null,null,null,null,null,null,null,null,null,null,null,null,337]
[null,null,null,null,null,null,null,null,null,null,null,null,null,338]
[null,null,null,null,null,null,null,null,null,null,null,null,null,339]
[null,null,null,null,null,null,null,null,null,null,null,null,null,340]
[null,null,null,null,null,null,null,null,null,null,null,null,null,341]
[null,null,null,null,null,null,null,null,null,null,null,null,null,342]
[null,null,null,null,null,null,null,null,null,null,null,null,null,343]
[null,null,null,null,null,null,null,null,null,null,null,null,null,344]
[null,null,null,null,null,null,null,null,null,null,null,null,null,345]
[null,null,null,null,null,null,null,null,null,null,null,null,null,346]
[null,null,null,null,null,null,null,null,null,null,null,null,null,347]
[null,null,null,null,null,null,null,null,null,null,null,null,null,348]
[null,null,null,null,null,null,null,null,null,null,null,null,null,349]
[null,null,null,null,null,null,null,null,null,null,null,null,null,350]
[null,null,null,null,null,null,null,null,null,null,null,null,null,351]
[null,null,null,null,null,null,null,null,null,null,null,null,null,352]
[null,null,null,null,null,null,null,null,null,null,null,null,null,353]
[null,null,null,null,null,null,null,null,null,null,null,null,null,354]
[null,null,null,null,null,null,null,null,null,null,null,null,null,355]
[null,null,null,null,null,null,null,null,null,null,null,null,null,356]
[null,null,null,null,null,null,null,null,null,null,null,null,null,357]
[null,null,null,null,null,null,null,null,null,null,null,null,null,358]
[null,null,null,null,null,null,null,null,null,null,null,null,null,359]
[null,null,null,null,null,null,null,null,null,null,null,null,null,360]
[null,null,null,null,null,null,null,null,null,null,null,null,null,361]
[null,null,null,null,null,null,null,null,null,null,null,null,null,362]
[null,null,null,null,null,null,null,null,null,null,null,null,null,363]
[null,null,null,null,null,null,null,null,null,null,null,null,null,364]
[null,null,null,null,null,null,null,null,null,null,null,null,null,365]
[null,null,null,null,null,null,null,null,null,null,null,null,null,366]
[null,null,null,null,null,null,null,null,null,null,null,null,null,367]
[null,null,null,null,null,null,null,null,null,null,null,null,null,368]
[null,null,null,null,null,null,null,null,null,null,null,null,null,369]
[null,null,null,null,null,null,null,null,null,null,null,null,null,370]
[null,null,null,null,null,null,null,null,null,null,null,null,null,371]
[null,null,null,null,null,null,null,null,null,null,null,null,null,372]
[null,null,null,null,null,null,null,null,null,null,null,null,null,373]
[null,null,null,null,null,null,null,null,null,null,null,null,null,374]
[null,null,null,null,null,null,null,null,null,null,null,null,null,375]
[null,null,null,null,null,null,null,null,null,null,null,null,null,376]
[null,null,null,null,null,null,null,null,null,null,null,null,null,377]
[null,null,null,null,null,null,null,null,null,null,null,null,null,378]
[null,null,null,null,null,null,null,null,null,null,null,null,null,379]
[null,null,null,null,null,null,null,null,null,null,null,null,null,380]
[null,null,null,null,null,null,null,null,null,null,null,null,null,381]
[null,null,null,null,null,null,null,null,null,null,null,null,null,382]
[null,null,null,null,null,null,null,null,null,null,null,null,null,383]
[null,null,null,null,null,null,null,null,null,null,null,null,null,384]
[null,null,null,null,null,null,null,null,null,null,null,null,null,385]
[null,null,null,null,null,null,null,null,null,null,null,null,null,386]
[null,null,null,null,null,null,null,null,null,null,null,null,null,387]
[null,null,null,null,null,null,null,null,null,null,null,null,null,388]
[null,null,null,null,null,null,null,null,null,null,null,null,null,389]
[null,null,null,null,null,null,null,null,null,null,null,null,null,390]
[null,null,null,null,null,null,null,null,null,null,null,null,null,391]
[null,null,null,null,null,null,null,null,null,null,null,null,null,392]
[null,null,null,null,null,null,null,null,null,null,null,null,null,393]
[null,null,null,null,null,null,null,null,null,null,null,null,null,394]
[null,null,null,null,null,null,null,null,null,null,null,null,null,395]
[null,null,null,null,null,null,null,null,null,null,null,null,null,396]
[null,null,null,null,null,null,null,null,null,null,null,null,null,397]
[null,null,null,null,null,null,null,null,null,null,null,null,null,398]
[null,null,null,null,null,null,null,null,null,null,null,null,null,399]
[null,null,null,null,null,null,null,null,null,null,null,null,null,400]
[null,null,null,null,null,null,null,null,null,null,null,null,null,401]
[null,null,null,null,null,null,null,null,null,null,null,null,null,402]
[null,null,null,null,null,null,null,null,null,null,null,null,null,403]
[null,null,null,null,null,null,null,null,null,null,null,null,null,404]
[null,null,null,null,null,null,null,null,null,null,null,null,null,405]
[null,null,null,null,null,null,null,null,null,null,null,null,null,406]
[null,null,null,null,null,null,null,null,null,null,null,null,null,407]
[null,null,null,null,null,null,null,null,null,null,null,null,null,408]
[null,null,null,null,null,null,null,null,null,null,null,null,null,409]
[null,null,null,null,null,null,null,null,null,null,null,null,null,410]
[null,null,null,null,null,null,null,null,null,null,null,null,null,411]
[null,null,null,null,null,null,null,null,null,null,null,null,null,412]
[null,null,null,null,null,null,null,null,null,null,null,null,null,413]
[null,null,null,null,null,null,null,null,null,null,null,null,null,414]
[null,null,null,null,null,null,null,null,null,null,null,null,null,415]
[null,null,null,null,null,null,null,null,null,null,null,null,null,416]
[null,null,null,null,null,null,null,null,null,null,null,null,null,417]
[null,null,null,null,null,null,null,null,null,null,null,null,null,418]
[null,null,null,null,null,null,null,null,null,null,null,null,null,419]
[null,null,null,null,null,null,null,null,null,null,null,null,null,420]
[null,null,null,null,null,null,null,null,null,null,null,null,null,421]
[null,null,null,null,null,null,null,null,null,null,null,null,null,422]
[null,null,null,null,null,null,null,null,null,null,null,null,null,423]
[null,null,null,null,null,null,null,null,null,null,null,null,null,424]
[null,null,null,null,null,null,null,null,null,null,null,null,null,425]
[null,null,null,null,null,null,null,null,null,null,null,null,null,426]
[null,null,null,null,null,null,null,null,null,null,null,null,null,427]
[null,null,null,null,null,null,null,null,null,null,null,null,null,428]
[null,null,null,null,null,null,null,null,null,null,null,null,null,429]
[null,null,null,null,null,null,null,null,null,null,null,null,null,430]
[null,null,null,null,null,null,null,null,null,null,null,null,null,431]
[null,null,null,null,null,null,null,null,null,null,null,null,null,432]
[null,null,null,null,null,null,null,null,null,null,null,null,null,433]
[null,null,null,null,null,null,null,null,null,null,null,null,null,434]
[null,null,null,null,null,null,null,null,null,null,null,null,null,435]
[null,null,null,null,null,null,null,null,null,null,null,null,null,436]
[null,null,null,null,null,null,null,null,null,null,null,null,null,437]
[null,null,null,null,null,null,null,null,null,null,null,null,null,438]
[null,null,null,null,null,null,null,null,null,null,null,null,null,439]
[null,null,null,null,null,null,null,null,null,null,null,null,null,440]
[null,null,null,null,null,null,null,null,null,null,null,null,null,441]
[null,null,null,null,null,null,null,null,null,null,null,null,null,442]
[null,null,null,null,null,null,null,null,null,null,null,null,null,443]
[null,null,null,null,null,null,null,null,null,null,null,null,null,444]
[null,null,null,null,null,null,null,null,null,null,null,null,null,445]
[null,null,null,null,null,null,null,null,null,null,null,null,null,446]
[null,null,null,null,null,null,null,null,null,null,null,null,null,447]
[null,null,null,null,null,null,null,null,null,null,null,null,null,448]
[null,null,null,null,null,null,null,null,null,null,null,null,null,449]
[null,null,null,null,null,null,null,null,null,null,null,null,null,450]
[null,null,null,null,null,null,null,null,null,null,null,null,null,451]
[null,null,null,null,null,null,null,null,null,null,null,null,null,452]
[null,null,null,null,null,null,null,null,null,null,null,null,null,453]
[null,null,null,null,null,null,null,null,null,null,null,null,null,454]
[null,null,null,null,null,null,null,null,null,null,null,null,null,455]
[null,null,null,null,null,null,null,null,null,null,null,null,null,456]
[null,null,null,null,null,null,null,null,null,null,null,null,null,457]
[null,null,null,null,null,null,null,null,null,null,null,null,null,458]
[null,null,null,null,null,null,null,null,null,null,null,null,null,459]
[null,null,null,null,null,null,null,null,null,null,null,null,null,460]
[null,null,null,null,null,null,null,null,null,null,null,null,null,461]
[null,null,null,null,null,null,null,null,null,null,null,null,null,462]
[null,null,null,null,null,null,null,null,null,null,null,null,null,463]
[null,null,null,null,null,null,null,null,null,null,null,null,null,464]
[null,null,null,null,null,null,null,null,null,null,null,null,null,465]
[null,null,null,null,null,null,null,null,null,null,null,null,null,466]
[null,null,null,null,null,null,null,null,null,null,null,null,null,467]
[null,null,null,null,null,null,null,null,null,null,null,null,null,468]
[null,null,null,null,null,null,null,null,null,null,null,null,null,469]
[null,null,null,null,null,null,null,null,null,null,null,null,null,470]
[null,null,null,null,null,null,null,null,null,null,null,null,null,471]
[null,null,null,null,null,null,null,null,null,null,null,null,null,472]
[null,null,null,null,null,null,null,null,null,null,null,null,null,473]
[null,null,null,null,null,null,null,null,null,null,null,null,null,474]
[null,null,null,null,null,null,null,null,null,null,null,null,null,475]
[null,null,null,null,null,null,null,null,null,null,null,null,null,476]
[null,null,null,null,null,null,null,null,null,null,null,null,null,477]
[null,null,null,null,null,null,null,null,null,null,null,null,null,478]
[null,null,null,null,null,null,null,null,null,null,null,null,null,479]
[null,null,null,null,null,null,null,null,null,null,null,null,null,480]
[null,null,null,null,null,null,null,null,null,null,null,null,null,481]
[null,null,null,null,null,null,null,null,null,null,null,null,null,482]
[null,null,null,null,null,null,null,null,null,null,null,null,null,483]
[null,null,null,null,null,null,null,null,null,null,null,null,null,484]
[null,null,null,null,null,null,null,null,null,null,null,null,null,485]
[null,null,null,null,null,null,null,null,null,null,null,null,null,486]
[null,null,null,null,null,null,null,null,null,null,null,null,null,487]
[null,null,null,null,null,null,null,null,null,null,null,null,null,488]
[null,null,null,null,null,null,null,null,null,null,null,null,null,489]
[null,null,null,null,null,null,null,null,null,null,null,null,null,490]
[null,null,null,null,null,null,null,null,null,null,null,null,null,491]
[null,null,null,null,null,null,null,null,null,null,null,null,null,492]
[null,null,null,null,null,null,null,null,null,null,null,null,null,493]
[null,null,null,null,null,null,null,null,null,null,null,null,null,494]
[null,null,null,null,null,null,null,null,null,null,null,null,null,495]
[null,null,null,null,null,null,null,null,null,null,null,null,null,496]
[null,null,null,null,null,null,null,null,null,null,null,null,null,497]
[null,null,null,null,null,null,null,null,null,null,null,null,null,498]
[null,null,null,null,null,null,null,null,null,null,null,null,null,499]
[null,null,null,null,null,null,null,null,null,null,null,null,null,500]
[null,null,null,null,null,null,null,null,null,null,null,null,null,501]
[null,null,null,null,null,null,null,null,null,null,null,null,null,502]
[null,null,null,null,null,null,null,null,null,null,null,null,null,503]
[null,null,null,null,null,null,null,null,null,null,null,null,null,504]
[null,null,null,null,null,null,null,null,null,null,null,null,null,505]
[null,null,null,null,null,null,null,null,null,null,null,null,null,506]
[null,null,null,null,null,null,null,null,null,null,null,null,null,507]
[null,null,null,null,null,null,null,null,null,null,null,null,null,508]
[null,null,null,null,null,null,null,null,null,null,null,null,null,509]
[null,null,null,null,null,null,null,null,null,null,null,null,null,510]
[null,null,null,null,null,null,null,null,null,null,null,null,null,511]
[null,null,null,null,null,null,null,null,null,null,null,null,null,512]
[null,null,null,null,null,null,null,null,null,null,null,null,null,513]
[null,null,null,null,null,null,null,null,null,null,null,null,null,514]
[null,null,null,null,null,null,null,null,null,null,null,null,null,515]
[null,null,null,null,null,null,null,null,null,null,null,null,null,516]
[null,null,null,null,null,null,null,null,null,null,null,null,null,517]
[null,null,null,null,null,null,null,null,null,null,null,null,null,518]
[null,null,null,null,null,null,null,null,null,null,null,null,null,519]
[null,null,null,null,null,null,null,null,null,null,null,null,null,520]
[null,null,null,null,null,null,null,null,null,null,null,null,null,521]
[null,null,null,null,null,null,null,null,null,null,null,null,null,522]
[null,null,null,null,null,null,null,null,null,null,null,null,null,523]
[null,null,null,null,null,null,null,null,null,null,null,null,null,524]
[null,null,null,null,null,null,null,null,null,null,null,null,null,525]
[null,null,null,null,null,null,null,null,null,null,null,null,null,526]
[null,null,null,null,null,null,null,null,null,null,null,null,null,527]
[null,null,null,null,null,null,null,null,null,null,null,null,null,528]
[null,null,null,null,null,null,null,null,null,null,null,null,null,529]
[null,null,null,null,null,null,null,null,null,null,null,null,null,530]
[null,null,null,null,null,null,null,null,null,null,null,null,null,531]
[null,null,null,null,null,null,null,null,null,null,null,null,null,532]
[null,null,null,null,null,null,null,null,null,null,null,null,null,533]
[null,null,null,null,null,null,null,null,null,null,null,null,null,534]
[null,null,null,null,null,null,null,null,null,null,null,null,null,535]
[null,null,null,null,null,null,null,null,null,null,null,null,null,536]
[null,null,null,null,null,null,null,null,null,null,null,null,null,537]
[null,null,null,null,null,null,null,null,null,null,null,null,null,538]
[null,null,null,null,null,null,null,null,null,null,null,null,null,539]
[null,null,null,null,null,null,null,null,null,null,null,null,null,540]
[null,null,null,null,null,null,null,null,null,null,null,null,null,541]
[null,null,null,null,null,null,null,null,null,null,null,null,null,542]
[null,null,null,null,null,null,null,null,null,null,null,null,null,543]
[null,null,null,null,null,null,null,null,null,null,null,null,null,544]
[null,null,null,null,null,null,null,null,null,null,null,null,null,545]
[null,null,null,null,null,null,null,null,null,null,null,null,null,546]
[null,null,null,null,null,null,null,null,null,null,null,null,null,547]
[null,null,null,null,null,null,null,null,null,null,null,null,null,548]
[null,null,null,null,null,null,null,null,null,null,null,null,null,549]
[null,null,null,null,null,null,null,null,null,null,null,null,null,550]
[null,null,null,null,null,null,null,null,null,null,null,null,null,551]
[null,null,null,null,null,null,null,null,null,null,null,null,null,552]
[null,null,null,null,null,null,null,null,null,null,null,null,null,553]
[null,null,null,null,null,null,null,null,null,null,null,null,null,554]
[null,null,null,null,null,null,null,null,null,null,null,null,null,555]
[null,null,null,null,null,null,null,null,null,null,null,null,null,556]
[null,null,null,null,null,null,null,null,null,null,null,null,null,557]
[null,null,null,null,null,null,null,null,null,null,null,null,null,558]
[null,null,null,null,null,null,null,null,null,null,null,null,null,559]
[null,null,null,null,null,null,null,null,null,null,null,null,null,560]
[null,null,null,null,null,null,null,null,null,null,null,null,null,561]
[null,null,null,null,null,null,null,null,null,null,null,null,null,562]
[null,null,null,null,null,null,null,null,null,null,null,null,null,563]
[null,null,null,null,null,null,null,null,null,null,null,null,null,564]
[null,null,null,null,null,null,null,null,null,null,null,null,null,565]
[null,null,null,null,null,null,null,null,null,null,null,null,null,566]
[null,null,null,null,null,null,null,null,null,null,null,null,null,567]
[null,null,null,null,null,null,null,null,null,null,null,null,null,568]
[null,null,null,null,null,null,null,null,null,null,null,null,null,569]
[null,null,null,null,null,null,null,null,null,null,null,null,null,570]
[null,null,null,null,null,null,null,null,null,null,null,null,null,571]
[null,null,null,null,null,null,null,null,null,null,null,null,null,572]
[null,null,null,null,null,null,null,null,null,null,null,null,null,573]
[null,null,null,null,null,null,null,null,null,null,null,null,null,574]
[null,null,null,null,null,null,null,null,null,null,null,null,null,575]
[null,null,null,null,null,null,null,null,null,null,null,null,null,576]
[null,null,null,null,null,null,null,null,null,null,null,null,null,577]
[null,null,null,null,null,null,null,null,null,null,null,null,null,578]
[null,null,null,null,null,null,null,null,null,null,null,null,null,579]
[null,null,null,null,null,null,null,null,null,null,null,null,null,580]
[null,null,null,null,null,null,null,null,null,null,null,null,null,581]
[null,null,null,null,null,null,null,null,null,null,null,null,null,582]
[null,null,null,null,null,null,null,null,null,null,null,null,null,583]
[null,null,null,null,null,null,null,null,null,null,null,null,null,584]
[null,null,null,null,null,null,null,null,null,null,null,null,null,585]
[null,null,null,null,null,null,null,null,null,null,null,null,null,586]
[null,null,null,null,null,null,null,null,null,null,null,null,null,587]
[null,null,null,null,null,null,null,null,null,null,null,null,null,588]
[null,null,null,null,null,null,null,null,null,null,null,null,null,589]
[null,null,null,null,null,null,null,null,null,null,null,null,null,590]
[null,null,null,null,null,null,null,null,null,null,null,null,null,591]
[null,null,null,null,null,null,null,null,null,null,null,null,null,592]
[null,null,null,null,null,null,null,null,null,null,null,null,null,593]
[null,null,null,null,null,null,null,null,null,null,null,null,null,594]
[null,null,null,null,null,null,null,null,null,null,null,null,null,595]
[null,null,null,null,null,null,null,null,null,null,null,null,null,596]
[null,null,null,null,null,null,null,null,null,null,null,null,null,597]
[null,null,null,null,null,null,null,null,null,null,null,null,null,598]
[null,null,null,null,null,null,null,null,null,null,null,null,null,599]
[null,null,null,null,null,null,null,null,null,null,null,null,null,600]
[null,null,null,null,null,null,null,null,null,null,null,null,null,601]
[null,null,null,null,null,null,null,null,null,null,null,null,null,602]
[null,null,null,null,null,null,null,null,null,null,null,null,null,603]
[null,null,null,null,null,null,null,null,null,null,null,null,null,604]
[null,null,null,null,null,null,null,null,null,null,null,null,null,605]
[null,null,null,null,null,null,null,null,null,null,null,null,null,606]
[null,null,null,null,null,null,null,null,null,null,null,null,null,607]
[null,null,null,null,null,null,null,null,null,null,null,null,null,608]
[null,null,null,null,null,null,null,null,null,null,null,null,null,609]
[null,null,null,null,null,null,null,null,null,null,null,null,null,610]
[null,null,null,null,null,null,null,null,null,null,null,null,null,611]
[null,null,null,null,null,null,null,null,null,null,null,null,null,612]
[null,null,null,null,null,null,null,null,null,null,null,null,null,613]
[null,null,null,null,null,null,null,null,null,null,null,null,null,614]
[null,null,null,null,null,null,null,null,null,null,null,null,null,615]
[null,null,null,null,null,null,null,null,null,null,null,null,null,616]
[null,null,null,null,null,null,null,null,null,null,null,null,null,617]
[null,null,null,null,null,null,null,null,null,null,null,null,null,618]
[null,null,null,null,null,null,null,null,null,null,null,null,null,619]
[null,null,null,null,null,null,null,null,null,null,null,null,null,620]
[null,null,null,null,null,null,null,null,null,null,null,null,null,621]
[null,null,null,null,null,null,null,null,null,null,null,null,null,622]
[null,null,null,null,null,null,null,null,null,null,null,null,null,623]
[null,null,null,null,null,null,null,null,null,null,null,null,null,624]
[null,null,null,null,null,null,null,null,null,null,null,null,null,625]
[null,null,null,null,null,null,null,null,null,null,null,null,null,626]
[null,null,null,null,null,null,null,null,null,null,null,null,null,627]
[null,null,null,null,null,null,null,null,null,null,null,null,null,628]
[null,null,null,null,null,null,null,null,null,null,null,null,null,629]
[null,null,null,null,null,null,null,null,null,null,null,null,null,630]
[null,null,null,null,null,null,null,null,null,null,null,null,null,631]
[null,null,null,null,null,null,null,null,null,null,null,null,null,632]
[null,null,null,null,null,null,null,null,null,null,null,null,null,633]
[null,null,null,null,null,null,null,null,null,null,null,null,null,634]
[null,null,null,null,null,null,null,null,null,null,null,null,null,635]
[null,null,null,null,null,null,null,null,null,null,null,null,null,636]
[null,null,null,null,null,null,null,null,null,null,null,null,null,637]
[null,null,null,null,null,null,null,null,null,null,null,null,null,638]
[null,null,null,null,null,null,null,null,null,null,null,null,null,639]
[null,null,null,null,null,null,null,null,null,null,null,null,null,640]
[null,null,null,null,null,null,null,null,null,null,null,null,null,641]
[null,null,null,null,null,null,null,null,null,null,null,null,null,642]
[null,null,null,null,null,null,null,null,null,null,null,null,null,643]
[null,null,null,null,null,null,null,null,null,null,null,null,null,644]
[null,null,null,null,null,null,null,null,null,null,null,null,null,645]
[null,null,null,null,null,null,null,null,null,null,null,null,null,646]
[null,null,null,null,null,null,null,null,null,null,null,null,null,647]
[null,null,null,null,null,null,null,null,null,null,null,null,null,648]
[null,null,null,null,null,null,null,null,null,null,null,null,null,649]
[null,null,null,null,null,null,null,null,null,null,null,null,null,650]
[null,null,null,null,null,null,null,null,null,null,null,null,null,651]
[null,null,null,null,null,null,null,null,null,null,null,null,null,652]
[null,null,null,null,null,null,null,null,null,null,null,null,null,653]
[null,null,null,null,null,null,null,null,null,null,null,null,null,654]
[null,null,null,null,null,null,null,null,null,null,null,null,null,655]
[null,null,null,null,null,null,null,null,null,null,null,null,null,656]
[null,null,null,null,null,null,null,null,null,null,null,null,null,657]
[null,null,null,null,null,null,null,null,null,null,null,null,null,658]
[null,null,null,null,null,null,null,null,null,null,null,null,null,659]
[null,null,null,null,null,null,null,null,null,null,null,null,null,660]
[null,null,null,null,null,null,null,null,null,null,null,null,null,661]
[null,null,null,null,null,null,null,null,null,null,null,null,null,662]
[null,null,null,null,null,null,null,null,null,null,null,null,null,663]
[null,null,null,null,null,null,null,null,null,null,null,null,null,664]
[null,null,null,null,null,null,null,null,null,null,null,null,null,665]
[null,null,null,null,null,null,null,null,null,null,null,null,null,666]
[null,null,null,null,null,null,null,null,null,null,null,null,null,667]
[null,null,null,null,null,null,null,null,null,null,null,null,null,668]
[null,null,null,null,null,null,null,null,null,null,null,null,null,669]
[null,null,null,null,null,null,null,null,null,null,null,null,null,670]
[null,null,null,null,null,null,null,null,null,null,null,null,null,671]
[null,null,null,null,null,null,null,null,null,null,null,null,null,672]
[null,null,null,null,null,null,null,null,null,null,null,null,null,673]
[null,null,null,null,null,null,null,null,null,null,null,null,null,674]
[null,null,null,null,null,null,null,null,null,null,null,null,null,675]
[null,null,null,null,null,null,null,null,null,null,null,null,null,676]
[null,null,null,null,null,null,null,null,null,null,null,null,null,677]
[null,null,null,null,null,null,null,null,null,null,null,null,null,678]
[null,null,null,null,null,null,null,null,null,null,null,null,null,679]
[null,null,null,null,null,null,null,null,null,null,null,null,null,680]
[null,null,null,null,null,null,null,null,null,null,null,null,null,681]
[null,null,null,null,null,null,null,null,null,null,null,null,null,682]
[null,null,null,null,null,null,null,null,null,null,null,null,null,683]
[null,null,null,null,null,null,null,null,null,null,null,null,null,684]
[null,null,null,null,null,null,null,null,null,null,null,null,null,685]
[null,null,null,null,null,null,null,null,null,null,null,null,null,686]
[null,null,null,null,null,null,null,null,null,null,null,null,null,687]
[null,null,null,null,null,null,null,null,null,null,null,null,null,688]
[null,null,null,null,null,null,null,null,null,null,null,null,null,689]
[null,null,null,null,null,null,null,null,null,null,null,null,null,690]
[null,null,null,null,null,null,null,null,null,null,null,null,null,691]
[null,null,null,null,null,null,null,null,null,null,null,null,null,692]
[null,null,null,null,null,null,null,null,null,null,null,null,null,693]
[null,null,null,null,null,null,null,null,null,null,null,null,null,694]
[null,null,null,null,null,null,null,null,null,null,null,null,null,695]
[null,null,null,null,null,null,null,null,null,null,null,null,null,696]
[null,null,null,null,null,null,null,null,null,null,null,null,null,697]
[null,null,null,null,null,null,null,null,null,null,null,null,null,698]
[null,null,null,null,null,null,null,null,null,null,null,null,null,699]
[null,null,null,null,null,null,null,null,null,null,null,null,null,700]
[null,null,null,null,null,null,null,null,null,null,null,null,null,701]
[null,null,null,null,null,null,null,null,null,null,null,null,null,702]
[null,null,null,null,null,null,null,null,null,null,null,null,null,703]
[null,null,null,null,null,null,null,null,null,null,null,null,null,704]
[null,null,null,null,null,null,null,null,null,null,null,null,null,705]
[null,null,null,null,null,null,null,null,null,null,null,null,null,706]
[null,null,null,null,null,null,null,null,null,null,null,null,null,707]
[null,null,null,null,null,null,null,null,null,null,null,null,null,708]
[null,null,null,null,null,null,null,null,null,null,null,null,null,709]
[null,null,null,null,null,null,null,null,null,null,null,null,null,710]
[null,null,null,null,null,null,null,null,null,null,null,null,null,711]
[null,null,null,null,null,null,null,null,null,null,null,null,null,712]
[null,null,null,null,null,null,null,null,null,null,null,null,null,713]
[null,null,null,null,null,null,null,null,null,null,null,null,null,714]
[null,null,null,null,null,null,null,null,null,null,null,null,null,715]
[null,null,null,null,null,null,null,null,null,null,null,null,null,716]
[null,null,null,null,null,null,null,null,null,null,null,null,null,717]
[null,null,null,null,null,null,null,null,null,null,null,null,null,718]
[null,null,null,null,null,null,null,null,null,null,null,null,null,719]
[null,null,null,null,null,null,null,null,null,null,null,null,null,720]
[null,null,null,null,null,null,null,null,null,null,null,null,null,721]
[null,null,null,null,null,null,null,null,null,null,null,null,null,722]
[null,null,null,null,null,null,null,null,null,null,null,null,null,723]
[null,null,null,null,null,null,null,null,null,null,null,null,null,724]
[null,null,null,null,null,null,null,null,null,null,null,null,null,725]
[null,null,null,null,null,null,null,null,null,null,null,null,null,726]
[null,null,null,null,null,null,null,null,null,null,null,null,null,727]
[null,null,null,null,null,null,null,null,null,null,null,null,null,728]
[null,null,null,null,null,null,null,null,null,null,null,null,null,729]
[null,null,null,null,null,null,null,null,null,null,null,null,null,730]
[null,null,null,null,null,null,null,null,null,null,null,null,null,731]
[null,null,null,null,null,null,null,null,null,null,null,null,null,732]
[null,null,null,null,null,null,null,null,null,null,null,null,null,733]
[null,null,null,null,null,null,null,null,null,null,null,null,null,734]
[null,null,null,null,null,null,null,null,null,null,null,null,null,735]
[null,null,null,null,null,null,null,null,null,null,null,null,null,736]
[null,null,null,null,null,null,null,null,null,null,null,null,null,737]
[null,null,null,null,null,null,null,null,null,null,null,null,null,738]
[null,null,null,null,null,null,null,null,null,null,null,null,null,739]
[null,null,null,null,null,null,null,null,null,null,null,null,null,740]
[null,null,null,null,null,null,null,null,null,null,null,null,null,741]
[null,null,null,null,null,null,null,null,null,null,null,null,null,742]
[null,null,null,null,null,null,null,null,null,null,null,null,null,743]
[null,null,null,null,null,null,null,null,null,null,null,null,null,744]
[null,null,null,null,null,null,null,null,null,null,null,null,null,745]
[null,null,null,null,null,null,null,null,null,null,null,null,null,746]
[null,null,null,null,null,null,null,null,null,null,null,null,null,747]
[null,null,null,null,null,null,null,null,null,null,null,null,null,748]
[null,null,null,null,null,null,null,null,null,null,null,null,null,749]
[null,null,null,null,null,null,null,null,null,null,null,null,null,750]
[null,null,null,null,null,null,null,null,null,null,null,null,null,751]
[null,null,null,null,null,null,null,null,null,null,null,null,null,752]
[null,null,null,null,null,null,null,null,null,null,null,null,null,753]
[null,null,null,null,null,null,null,null,null,null,null,null,null,754]
[null,null,null,null,null,null,null,null,null,null,null,null,null,755]
[null,null,null,null,null,null,null,null,null,null,null,null,null,756]
[null,null,null,null,null,null,null,null,null,null,null,null,null,757]
[null,null,null,null,null,null,null,null,null,null,null,null,null,758]
[null,null,null,null,null,null,null,null,null,null,null,null,null,759]
[null,null,null,null,null,null,null,null,null,null,null,null,null,760]
[null,null,null,null,null,null,null,null,null,null,null,null,null,761]
[null,null,null,null,null,null,null,null,null,null,null,null,null,762]
[null,null,null,null,null,null,null,null,null,null,null,null,null,763]
[null,null,null,null,null,null,null,null,null,null,null,null,null,764]
[null,null,null,null,null,null,null,null,null,null,null,null,null,765]
[null,null,null,null,null,null,null,null,null,null,null,null,null,766]
[null,null,null,null,null,null,null,null,null,null,null,null,null,767]
[null,null,null,null,null,null,null,null,null,null,null,null,null,768]
[null,null,null,null,null,null,null,null,null,null,null,null,null,769]
[null,null,null,null,null,null,null,null,null,null,null,null,null,770]
[null,null,null,null,null,null,null,null,null,null,null,null,null,771]
[null,null,null,null,null,null,null,null,null,null,null,null,null,772]
[null,null,null,null,null,null,null,null,null,null,null,null,null,773]
[null,null,null,null,null,null,null,null,null,null,null,null,null,774]
[null,null,null,null,null,null,null,null,null,null,null,null,null,775]
[null,null,null,null,null,null,null,null,null,null,null,null,null,776]
[null,null,null,null,null,null,null,null,null,null,null,null,null,777]
[null,null,null,null,null,null,null,null,null,null,null,null,null,778]
[null,null,null,null,null,null,null,null,null,null,null,null,null,779]
[null,null,null,null,null,null,null,null,null,null,null,null,null,780]
[null,null,null,null,null,null,null,null,null,null,null,null,null,781]
[null,null,null,null,null,null,null,null,null,null,null,null,null,782]
[null,null,null,null,null,null,null,null,null,null,null,null,null,783]
[null,null,null,null,null,null,null,null,null,null,null,null,null,784]
[null,null,null,null,null,null,null,null,null,null,null,null,null,785]
[null,null,null,null,null,null,null,null,null,null,null,null,null,786]
[null,null,null,null,null,null,null,null,null,null,null,null,null,787]
[null,null,null,null,null,null,null,null,null,null,null,null,null,788]
[null,null,null,null,null,null,null,null,null,null,null,null,null,789]
[null,null,null,null,null,null,null,null,null,null,null,null,null,790]
[null,null,null,null,null,null,null,null,null,null,null,null,null,791]
[null,null,null,null,null,null,null,null,null,null,null,null,null,792]
[null,null,null,null,null,null,null,null,null,null,null,null,null,793]
[null,null,null,null,null,null,null,null,null,null,null,null,null,794]
[null,null,null,null,null,null,null,null,null,null,null,null,null,795]
[null,null,null,null,null,null,null,null,null,null,null,null,null,796]
[null,null,null,null,null,null,null,null,null,null,null,null,null,797]
[null,null,null,null,null,null,null,null,null,null,null,null,null,798]
[null,null,null,null,null,null,null,null,null,null,null,null,null,799]
[null,null,null,null,null,null,null,null,null,null,null,null,null,800]
[null,null,null,null,null,null,null,null,null,null,null,null,null,801]
[null,null,null,null,null,null,null,null,null,null,null,null,null,802]
[null,null,null,null,null,null,null,null,null,null,null,null,null,803]
[null,null,null,null,null,null,null,null,null,null,null,null,null,804]
[null,null,null,null,null,null,null,null,null,null,null,null,null,805]
[null,null,null,null,null,null,null,null,null,null,null,null,null,806]
[null,null,null,null,null,null,null,null,null,null,null,null,null,807]
[null,null,null,null,null,null,null,null,null,null,null,null,null,808]
[null,null,null,null,null,null,null,null,null,null,null,null,null,809]
[null,null,null,null,null,null,null,null,null,null,null,null,null,810]
[null,null,null,null,null,null,null,null,null,null,null,null,null,811]
[null,null,null,null,null,null,null,null,null,null,null,null,null,812]
[null,null,null,null,null,null,null,null,null,null,null,null,null,813]
[null,null,null,null,null,null,null,null,null,null,null,null,null,814]
[null,null,null,null,null,null,null,null,null,null,null,null,null,815]
[null,null,null,null,null,null,null,null,null,null,null,null,null,816]
[null,null,null,null,null,null,null,null,null,null,null,null,null,817]
[null,null,null,null,null,null,null,null,null,null,null,null,null,818]
[null,null,null,null,null,null,null,null,null,null,null,null,null,819]
[null,null,null,null,null,null,null,null,null,null,null,null,null,820]
[null,null,null,null,null,null,null,null,null,null,null,null,null,821]
[null,null,null,null,null,null,null,null,null,null,null,null,null,822]
[null,null,null,null,null,null,null,null,null,null,null,null,null,823]
[null,null,null,null,null,null,null,null,null,null,null,null,null,824]
[null,null,null,null,null,null,null,null,null,null,null,null,null,825]
[null,null,null,null,null,null,null,null,null,null,null,null,null,826]
[null,null,null,null,null,null,null,null,null,null,null,null,null,827]
[null,null,null,null,null,null,null,null,null,null,null,null,null,828]
[null,null,null,null,null,null,null,null,null,null,null,null,null,829]
[null,null,null,null,null,null,null,null,null,null,null,null,null,830]
[null,null,null,null,null,null,null,null,null,null,null,null,null,831]
[null,null,null,null,null,null,null,null,null,null,null,null,null,832]
[null,null,null,null,null,null,null,null,null,null,null,null,null,833]
[null,null,null,null,null,null,null,null,null,null,null,null,null,834]
[null,null,null,null,null,null,null,null,null,null,null,null,null,835]
[null,null,null,null,null,null,null,null,null,null,null,null,null,836]
[null,null,null,null,null,null,null,null,null,null,null,null,null,837]
[null,null,null,null,null,null,null,null,null,null,null,null,null,838]
[null,null,null,null,null,null,null,null,null,null,null,null,null,839]
[null,null,null,null,null,null,null,null,null,null,null,null,null,840]
[null,null,null,null,null,null,null,null,null,null,null,null,null,841]
[null,null,null,null,null,null,null,null,null,null,null,null,null,842]
[null,null,null,null,null,null,null,null,null,null,null,null,null,843]
[null,null,null,null,null,null,null,null,null,null,null,null,null,844]
[null,null,null,null,null,null,null,null,null,null,null,null,null,845]
[null,null,null,null,null,null,null,null,null,null,null,null,null,846]
[null,null,null,null,null,null,null,null,null,null,null,null,null,847]
[null,null,null,null,null,null,null,null,null,null,null,null,null,848]
[null,null,null,null,null,null,null,null,null,null,null,null,null,849]
[null,null,null,null,null,null,null,null,null,null,null,null,null,850]
[null,null,null,null,null,null,null,null,null,null,null,null,null,851]
[null,null,null,null,null,null,null,null,null,null,null,null,null,852]
[null,null,null,null,null,null,null,null,null,null,null,null,null,853]
[null,null,null,null,null,null,null,null,null,null,null,null,null,854]
[null,null,null,null,null,null,null,null,null,null,null,null,null,855]
[null,null,null,null,null,null,null,null,null,null,null,null,null,856]
[null,null,null,null,null,null,null,null,null,null,null,null,null,857]
[null,null,null,null,null,null,null,null,null,null,null,null,null,858]
[null,null,null,null,null,null,null,null,null,null,null,null,null,859]
[null,null,null,null,null,null,null,null,null,null,null,null,null,860]
[null,null,null,null,null,null,null,null,null,null,null,null,null,861]
[null,null,null,null,null,null,null,null,null,null,null,null,null,862]
[null,null,null,null,null,null,null,null,null,null,null,null,null,863]
[null,null,null,null,null,null,null,null,null,null,null,null,null,864]
[null,null,null,null,null,null,null,null,null,null,null,null,null,865]
[null,null,null,null,null,null,null,null,null,null,null,null,null,866]
[null,null,null,null,null,null,null,null,null,null,null,null,null,867]
[null,null,null,null,null,null,null,null,null,null,null,null,null,868]
[null,null,null,null,null,null,null,null,null,null,null,null,null,869]
[null,null,null,null,null,null,null,null,null,null,null,null,null,870]
[null,null,null,null,null,null,null,null,null,null,null,null,null,871]
[null,null,null,null,null,null,null,null,null,null,null,null,null,872]
[null,null,null,null,null,null,null,null,null,null,null,null,null,873]
[null,null,null,null,null,null,null,null,null,null,null,null,null,874]
[null,null,null,null,null,null,null,null,null,null,null,null,null,875]
[null,null,null,null,null,null,null,null,null,null,null,null,null,876]
[null,null,null,null,null,null,null,null,null,null,null,null,null,877]
[null,null,null,null,null,null,null,null,null,null,null,null,null,878]
[null,null,null,null,null,null,null,null,null,null,null,null,null,879]
[null,null,null,null,null,null,null,null,null,null,null,null,null,880]
[null,null,null,null,null,null,null,null,null,null,null,null,null,881]
[null,null,null,null,null,null,null,null,null,null,null,null,null,882]
[null,null,null,null,null,null,null,null,null,null,null,null,null,883]
[null,null,null,null,null,null,null,null,null,null,null,null,null,884]
[null,null,null,null,null,null,null,null,null,null,null,null,null,885]
[null,null,null,null,null,null,null,null,null,null,null,null,null,886]
[null,null,null,null,null,null,null,null,null,null,null,null,null,887]
[null,null,null,null,null,null,null,null,null,null,null,null,null,888]
[null,null,null,null,null,null,null,null,null,null,null,null,null,889]
[null,null,null,null,null,null,null,null,null,null,null,null,null,890]
[null,null,null,null,null,null,null,null,null,null,null,null,null,891]
[null,null,null,null,null,null,null,null,null,null,null,null,null,892]
[null,null,null,null,null,null,null,null,null,null,null,null,null,893]
[null,null,null,null,null,null,null,null,null,null,null,null,null,894]
[null,null,null,null,null,null,null,null,null,null,null,null,null,895]
[null,null,null,null,null,null,null,null,null,null,null,null,null,896]
[null,null,null,null,null,null,null,null,null,null,null,null,null,897]
[null,null,null,null,null,null,null,null,null,null,null,null,null,898]
[null,null,null,null,null,null,null,null,null,null,null,null,null,899]
[null,null,null,null,null,null,null,null,null,null,null,null,null,900]
[null,null,null,null,null,null,null,null,null,null,null,null,null,901]
[null,null,null,null,null,null,null,null,null,null,null,null,null,902]
[null,null,null,null,null,null,null,null,null,null,null,null,null,903]
[null,null,null,null,null,null,null,null,null,null,null,null,null,904]
[null,null,null,null,null,null,null,null,null,null,null,null,null,905]
[null,null,null,null,null,null,null,null,null,null,null,null,null,906]
[null,null,null,null,null,null,null,null,null,null,null,null,null,907]
[null,null,null,null,null,null,null,null,null,null,null,null,null,908]
[null,null,null,null,null,null,null,null,null,null,null,null,null,909]
[null,null,null,null,null,null,null,null,null,null,null,null,null,910]
[null,null,null,null,null,null,null,null,null,null,null,null,null,911]
[null,null,null,null,null,null,null,null,null,null,null,null,null,912]
[null,null,null,null,null,null,null,null,null,null,null,null,null,913]
[null,null,null,null,null,null,null,null,null,null,null,null,null,914]
[null,null,null,null,null,null,null,null,null,null,null,null,null,915]
[null,null,null,null,null,null,null,null,null,null,null,null,null,916]
[null,null,null,null,null,null,null,null,null,null,null,null,null,917]
[null,null,null,null,null,null,null,null,null,null,null,null,null,918]
[null,null,null,null,null,null,null,null,null,null,null,null,null,919]
[null,null,null,null,null,null,null,null,null,null,null,null,null,920]
[null,null,null,null,null,null,null,null,null,null,null,null,null,921]
[null,null,null,null,null,null,null,null,null,null,null,null,null,922]
[null,null,null,null,null,null,null,null,null,null,null,null,null,923]
[null,null,null,null,null,null,null,null,null,null,null,null,null,924]
[null,null,null,null,null,null,null,null,null,null,null,null,null,925]
[null,null,null,null,null,null,null,null,null,null,null,null,null,926]
[null,null,null,null,null,null,null,null,null,null,null,null,null,927]
[null,null,null,null,null,null,null,null,null,null,null,null,null,928]
[null,null,null,null,null,null,null,null,null,null,null,null,null,929]
[null,null,null,null,null,null,null,null,null,null,null,null,null,930]
[null,null,null,null,null,null,null,null,null,null,null,null,null,931]
[null,null,null,null,null,null,null,null,null,null,null,null,null,932]
[null,null,null,null,null,null,null,null,null,null,null,null,null,933]
[null,null,null,null,null,null,null,null,null,null,null,null,null,934]
[null,null,null,null,null,null,null,null,null,null,null,null,null,935]
[null,null,null,null,null,null,null,null,null,null,null,null,null,936]
[null,null,null,null,null,null,null,null,null,null,null,null,null,937]
[null,null,null,null,null,null,null,null,null,null,null,null,null,938]
[null,null,null,null,null,null,null,null,null,null,null,null,null,939]
[null,null,null,null,null,null,null,null,null,null,null,null,null,940]
[null,null,null,null,null,null,null,null,null,null,null,null,null,941]
[null,null,null,null,null,null,null,null,null,null,null,null,null,942]
[null,null,null,null,null,null,null,null,null,null,null,null,null,943]
[null,null,null,null,null,null,null,null,null,null,null,null,null,944]
[null,null,null,null,null,null,null,null,null,null,null,null,null,945]
[null,null,null,null,null,null,null,null,null,null,null,null,null,946]
[null,null,null,null,null,null,null,null,null,null,null,null,null,947]
[null,null,null,null,null,null,null,null,null,null,null,null,null,948]
[null,null,null,null,null,null,null,null,null,null,null,null,null,949]
[null,null,null,null,null,null,null,null,null,null,null,null,null,950]
[null,null,null,null,null,null,null,null,null,null,null,null,null,951]
[null,null,null,null,null,null,null,null,null,null,null,null,null,952]
[null,null,null,null,null,null,null,null,null,null,null,null,null,953]
[null,null,null,null,null,null,null,null,null,null,null,null,null,954]
[null,null,null,null,null,null,null,null,null,null,null,null,null,955]
[null,null,null,null,null,null,null,null,null,null,null,null,null,956]
[null,null,null,null,null,null,null,null,null,null,null,null,null,957]
[null,null,null,null,null,null,null,null,null,null,null,null,null,958]
[null,null,null,null,null,null,null,null,null,null,null,null,null,959]
[null,null,null,null,null,null,null,null,null,null,null,null,null,960]
[null,null,null,null,null,null,null,null,null,null,null,null,null,961]
[null,null,null,null,null,null,null,null,null,null,null,null,null,962]
[null,null,null,null,null,null,null,null,null,null,null,null,null,963]
[null,null,null,null,null,null,null,null,null,null,null,null,null,964]
[null,null,null,null,null,null,null,null,null,null,null,null,null,965]
[null,null,null,null,null,null,null,null,null,null,null,null,null,966]
[null,null,null,null,null,null,null,null,null,null,null,null,null,967]
[null,null,null,null,null,null,null,null,null,null,null,null,null,968]
[null,null,null,null,null,null,null,null,null,null,null,null,null,969]
[null,null,null,null,null,null,null,null,null,null,null,null,null,970]
[null,null,null,null,null,null,null,null,null,null,null,null,null,971]
[null,null,null,null,null,null,null,null,null,null,null,null,null,972]
[null,null,null,null,null,null,null,null,null,null,null,null,null,973]
[null,null,null,null,null,null,null,null,null,null,null,null,null,974]
[null,null,null,null,null,null,null,null,null,null,null,null,null,975]
[null,null,null,null,null,null,null,null,null,null,null,null,null,976]
[null,null,null,null,null,null,null,null,null,null,null,null,null,977]
[null,null,null,null,null,null,null,null,null,null,null,null,null,978]
[null,null,null,null,null,null,null,null,null,null,null,null,null,979]
[null,null,null,null,null,null,null,null,null,null,null,null,null,980]
[null,null,null,null,null,null,null,null,null,null,null,null,null,981]
[null,null,null,null,null,null,null,null,null,null,null,null,null,982]
[null,null,null,null,null,null,null,null,null,null,null,null,null,983]
[null,null,null,null,null,null,null,null,null,null,null,null,null,984]
[null,null,null,null,null,null,null,null,null,null,null,null,null,985]
[null,null,null,null,null,null,null,null,null,null,null,null,null,986]
[null,null,null,null,null,null,null,null,null,null,null,null,null,987]
[null,null,null,null,null,null,null,null,null,null,null,null,null,988]
[null,null,null,null,null,null,null,null,null,null,null,null,null,989]
[null,null,null,null,null,null,null,null,null,null,null,null,null,990]
[null,null,null,null,null,null,null,null,null,null,null,null,null,991]
[null,null,null,null,null,null,null,null,null,null,null,null,null,992]
[null,null,null,null,null,null,null,null,null,null,null,null,null,993]
[null,null,null,null,null,null,null,null,null,null,null,null,null,994]
[null,null,null,null,null,null,null,null,null,null,null,null,null,995]
[null,null,null,null,null,null,null,null,null,null,null,null,null,996]
[null,null,null,null,null,null,null,null,null,null,null,null,null,997]
[null,null,null,null,null,null,null,null,null,null,null,null,null,998]
[null,null,null,null,null,null,null,null,null,null,null,null,null,999]
[null,null,null,null,null,null,null,null,null,null,null,null,null,1000]
[null,null,null,null,null,null,null,null,null,null,null,null,null,1001]
[null,null,null,null,null,null,null,null,null,null,null,null,null,1002]
[null,null,null,null,null,null,null,null,null,null,null,null,null,1003]
[null,null,null,null,null,null,null,null,null,null,null,null,null,1004]
[null,null,null,null,null,null,null,null,null,null,null,null,null,1005]
[null,null,null,null,null,null,null,null,null,null,null,null,null,1006]
[null,null,null,null,null,null,null,null,null,null,null,null,null,1007]
[null,null,null,null,null,null,null,null,null,null,null,null,null,1008]
[null,null,null,null,null,null,null,null,null,null,null,null,null,1009]
[null,null,null,null,null,null,null,null,null,null,null,null,null,1010]
[null,null,null,null,null,null,null,null,null,null,null,null,null,1011]
[null,null,null,null,null,null,null,null,null,null,null,null,null,1012]
[null,null,null,null,null,null,null,null,null,null,null,null,null,1013]
[null,null,null,null,null,null,null,null,null,null,null,null,null,1014]
[null,null,null,null,null,null,null,null,null,null,null,null,null,1015]
[null,null,null,null,null,null,null,null,null,null,null,null,null,1016]
[null,null,null,null,null,null,null,null,null,null,null,null,null,1017]
[null,null,null,null,null,null,null,null,null,null,null,null,null,1018]
[null,null,null,null,null,null,null,null,null,null,null,null,null,1019]
[null,null,null,null,null,null,null,null,null,null,null,null,null,1020]
[null,null,null,null,null,null,null,null,null,null,null,null,null,1021]
[null,null,null,null,null,null,null,null,null,null,null,null,null,1022]
[null,null,null,null,null,null,null,null,null,null,null,null,null,1023]
[null,null,null,null,null,null,null,null,null,null,null,null,null,1024]
[null,null,null,null,null,null,null,null,null,null,null,null,null,1025]
[null,null,null,null,null,null,null,null,null,null,null,null,null,1026]
[null,null,null,null,null,null,null,null,null,null,null,null,null,1027]
[null,null,null,null,null,null,null,null,null,null,null,null,null,1028]
[null,null,null,null,null,null,null,null,null,null,null,null,null,1029]
[null,null,null,null,null,null,null,null,null,null,null,null,null,1030]
[null,null,null,null,null,null,null,null,null,null,null,null,null,1031]
[null,null,null,null,null,null,null,null,null,null,null,null,null,1032]
[null,null,null,null,null,null,null,null,null,null,null,null,null,1033]
[null,null,null,null,null,null,null,null,null,null,null,null,null,1034]
[null,null,null,null,null,null,null,null,null,null,null,null,null,1035]
[null,null,null,null,null,null,null,null,null,null,null,null,null,1036]
[null,null,null,null,null,null,null,null,null,null,null,null,null,1037]
[null,null,null,null,null,null,null,null,null,null,null,null,null,1038]
[null,null,null,null,null,null,null,null,null,null,null,null,null,1039]
[null,null,null,null,null,null,null,null,null,null,null,null,null,1040]
[null,null,null,null,null,null,null,null,null,null,null,null,null,1041]
[null,null,null,null,null,null,null,null,null,null,null,null,null,1042]
[null,null,null,null,null,null,null,null,null,null,null,null,null,1043]
[null,null,null,null,null,null,null,null,null,null,null,null,null,1044]
[null,null,null,null,null,null,null,null,null,null,null,null,null,1045]
[null,null,null,null,null,null,null,null,null,null,null,null,null,1046]
[null,null,null,null,null,null,null,null,null,null,null,null,null,1047]
[null,null,null,null,null,null,null,null,null,null,null,null,null,1048]
[null,null,null,null,null,null,null,null,null,null,null,null,null,1049]
[null,null,null,null,null,null,null,null,null,null,null,null,null,1050]
[null,null,null,null,null,null,null,null,null,null,null,null,null,1051]
[null,null,null,null,null,null,null,null,null,null,null,null,null,1052]
[null,null,null,null,null,null,null,null,null,null,null,null,null,1053]
[null,null,null,null,null,null,null,null,null,null,null,null,null,1054]
[null,null,null,null,null,null,null,null,null,null,null,null,null,1055]
[null,null,null,null,null,null,null,null,null,null,null,null,null,1056]
[null,null,null,null,null,null,null,null,null,null,null,null,null,1057]
[null,null,null,null,null,null,null,null,null,null,null,null,null,1058]
[null,null,null,null,null,null,null,null,null,null,null,null,null,1059]
[null,null,null,null,null,null,null,null,null,null,null,null,null,1060]
[null,null,null,null,null,null,null,null,null,null,null,null,null,1061]
[null,null,null,null,null,null,null,null,null,null,null,null,null,1062]
[null,null,null,null,null,null,null,null,null,null,null,null,null,1063]
[null,null,null,null,null,null,null,null,null,null,null,null,null,1064]
[null,null,null,null,null,null,null,null,null,null,null,null,null,1065]
[null,null,null,null,null,null,null,null,null,null,null,null,null,1066]
[null,null,null,null,null,null,null,null,null,null,null,null,null,1067]
[null,null,null,null,null,null,null,null,null,null,null,null,null,1068]
[null,null,null,null,null,null,null,null,null,null,null,null,null,1069]
[null,null,null,null,null,null,null,null,null,null,null,null,null,1070]
[null,null,null,null,null,null,null,null,null,null,null,null,null,1071]
[null,null,null,null,null,null,null,null,null,null,null,null,null,1072]
[null,null,null,null,null,null,null,null,null,null,null,null,null,1073]
[null,null,null,null,null,null,null,null,null,null,null,null,null,1074]
[null,null,null,null,null,null,null,null,null,null,null,null,null,1075]
[null,null,null,null,null,null,null,null,null,null,null,null,null,1076]
[null,null,null,null,null,null,null,null,null,null,null,null,null,1077]
[null,null,null,null,null,null,null,null,null,null,null,null,null,1078]
[null,null,null,null,null,null,null,null,null,null,null,null,null,1079]
[null,null,null,null,null,null,null,null,null,null,null,null,null,1080]
[null,null,null,null,null,null,null,null,null,null,null,null,null,1081]
[null,null,null,null,null,null,null,null,null,null,null,null,null,1082]
[null,null,null,null,null,null,null,null,null,null,null,null,null,1083]
[null,null,null,null,null,null,null,null,null,null,null,null,null,1084]
[null,null,null,null,null,null,null,null,null,null,null,null,null,1085]
[null,null,null,null,null,null,null,null,null,null,null,null,null,1086]
[null,null,null,null,null,null,null,null,null,null,null,null,null,1087]
[null,null,null,null,null,null,null,null,null,null,null,null,null,1088]
[null,null,null,null,null,null,null,null,null,null,null,null,null,1089]
[null,null,null,null,null,null,null,null,null,null,null,null,null,1090]
[null,null,null,null,null,null,null,null,null,null,null,null,null,1091]
[null,null,null,null,null,null,null,null,null,null,null,null,null,1092]
[null,null,null,null,null,null,null,null,null,null,null,null,null,1093]
[null,null,null,null,null,null,null,null,null,null,null,null,null,1094]
[null,null,null,null,null,null,null,null,null,null,null,null,null,1095]
[null,null,null,null,null,null,null,null,null,null,null,null,null,1096]
[null,null,null,null,null,null,null,null,null,null,null,null,null,1097]
[null,null,null,null,null,null,null,null,null,null,null,null,null,1098]
[null,null,null,null,null,null,null,null,null,null,null,null,null,1099]
[null,null,null,null,null,null,null,null,null,null,null,null,null,1100]
[null,null,null,null,null,null,null,null,null,null,null,null,null,1101]
[null,null,null,null,null,null,null,null,null,null,null,null,null,1102]
[null,null,null,null,null,null,null,null,null,null,null,null,null,1103]
[null,null,null,null,null,null,null,null,null,null,null,null,null,1104]
[null,null,null,null,null,null,null,null,null,null,null,null,null,1105]
[null,null,null,null,null,null,null,null,null,null,null,null,null,1106]
[null,null,null,null,null,null,null,null,null,null,null,null,null,1107]
[null,null,null,null,null,null,null,null,null,null,null,null,null,1108]
[null,null,null,null,null,null,null,null,null,null,null,null,null,1109]
[null,null,null,null,null,null,null,null,null,null,null,null,null,1110]
[null,null,null,null,null,null,null,null,null,null,null,null,null,1111]
[null,null,null,null,null,null,null,null,null,null,null,null,null,1112]
[null,null,null,null,null,null,null,null,null,null,null,null,null,1113]
[null,null,null,null,null,null,null,null,null,null,null,null,null,1114]
[null,null,null,null,null,null,null,null,null,null,null,null,null,1115]
[null,null,null,null,null,null,null,null,null,null,null,null,null,1116]
[null,null,null,null,null,null,null,null,null,null,null,null,null,1117]
[null,null,null,null,null,null,null,null,null,null,null,null,null,1118]
[null,null,null,null,null,null,null,null,null,null,null,null,null,1119]
[null,null,null,null,null,null,null,null,null,null,null,null,null,1120]
[null,null,null,null,null,null,null,null,null,null,null,null,null,1121]
[null,null,null,null,null,null,null,null,null,null,null,null,null,1122]
[null,null,null,null,null,null,null,null,null,null,null,null,null,1123]
[null,null,null,null,null,null,null,null,null,null,null,null,null,1124]
[null,null,null,null,null,null,null,null,null,null,null,null,null,1125]
[null,null,null,null,null,null,null,null,null,null,null,null,null,1126]
[null,null,null,null,null,null,null,null,null,null,null,null,null,1127]
[null,null,null,null,null,null,null,null,null,null,null,null,null,1128]
[null,null,null,null,null,null,null,null,null,null,null,null,null,1129]
[null,null,null,null,null,null,null,null,null,null,null,null,null,1130]
[null,null,null,null,null,null,null,null,null,null,null,null,null,1131]
[null,null,null,null,null,null,null,null,null,null,null,null,null,1132]
[null,null,null,null,null,null,null,null,null,null,null,null,null,1133]
[null,null,null,null,null,null,null,null,null,null,null,null,null,1134]
[null,null,null,null,null,null,null,null,null,null,null,null,null,1135]
[null,null,null,null,null,null,null,null,null,null,null,null,null,1136]
[null,null,null,null,null,null,null,null,null,null,null,null,null,1137]
[null,null,null,null,null,null,null,null,null,null,null,null,null,1138]
[null,null,null,null,null,null,null,null,null,null,null,null,null,1139]
[null,null,null,null,null,null,null,null,null,null,null,null,null,1140]
[null,null,null,null,null,null,null,null,null,null,null,null,null,1141]
[null,null,null,null,null,null,null,null,null,null,null,null,null,1142]
[null,null,null,null,null,null,null,null,null,null,null,null,null,1143]
[null,null,null,null,null,null,null,null,null,null,null,null,null,1144]
[null,null,null,null,null,null,null,null,null,null,null,null,null,1145]
[null,null,null,null,null,null,null,null,null,null,null,null,null,1146]
[null,null,null,null,null,null,null,null,null,null,null,null,null,1147]
[null,null,null,null,null,null,null,null,null,null,null,null,null,1148]
[null,null,null,null,null,null,null,null,null,null,null,null,null,1149]
[null,null,null,null,null,null,null,null,null,null,null,null,null,1150]
[null,null,null,null,null,null,null,null,null,null,null,null,null,1151]
[null,null,null,null,null,null,null,null,null,null,null,null,null,1152]
[null,null,null,null,null,null,null,null,null,null,null,null,null,1153]
[null,null,null,null,null,null,null,null,null,null,null,null,null,1154]
[null,null,null,null,null,null,null,null,null,null,null,null,null,1155]
[null,null,null,null,null,null,null,null,null,null,null,null,null,1156]
[null,null,null,null,null,null,null,null,null,null,null,null,null,1157]
[null,null,null,null,null,null,null,null,null,null,null,null,null,1158]
[null,null,null,null,null,null,null,null,null,null,null,null,null,1159]
[null,null,null,null,null,null,null,null,null,null,null,null,null,1160]
[null,null,null,null,null,null,null,null,null,null,null,null,null,1161]
[null,null,null,null,null,null,null,null,null,null,null,null,null,1162]
[null,null,null,null,null,null,null,null,null,null,null,null,null,1163]
[null,null,null,null,null,null,null,null,null,null,null,null,null,1164]
[null,null,null,null,null,null,null,null,null,null,null,null,null,1165]
[null,null,null,null,null,null,null,null,null,null,null,null,null,1166]
[null,null,null,null,null,null,null,null,null,null,null,null,null,1167]
[null,null,null,null,null,null,null,null,null,null,null,null,null,1168]
[null,null,null,null,null,null,null,null,null,null,null,null,null,1169]
[null,null,null,null,null,null,null,null,null,null,null,null,null,1170]
[null,null,null,null,null,null,null,null,null,null,null,null,null,1171]
[null,null,null,null,null,null,null,null,null,null,null,null,null,1172]
[null,null,null,null,null,null,null,null,null,null,null,null,null,1173]
[null,null,null,null,null,null,null,null,null,null,null,null,null,1174]
[null,null,null,null,null,null,null,null,null,null,null,null,null,1175]
[null,null,null,null,null,null,null,null,null,null,null,null,null,1176]
[null,null,null,null,null,null,null,null,null,null,null,null,null,1177]
[null,null,null,null,null,null,null,null,null,null,null,null,null,1178]
[null,null,null,null,null,null,null,null,null,null,null,null,null,1179]
[null,null,null,null,null,null,null,null,null,null,null,null,null,1180]
[null,null,null,null,null,null,null,null,null,null,null,null,null,1181]
[null,null,null,null,null,null,null,null,null,null,null,null,null,1182]
[null,null,null,null,null,null,null,null,null,null,null,null,null,1183]
[null,null,null,null,null,null,null,null,null,null,null,null,null,1184]
[null,null,null,null,null,null,null,null,null,null,null,null,null,1185]
[null,null,null,null,null,null,null,null,null,null,null,null,null,1186]
[null,null,null,null,null,null,null,null,null,null,null,null,null,1187]
[null,null,null,null,null,null,null,null,null,null,null,null,null,1188]
[null,null,null,null,null,null,null,null,null,null,null,null,null,1189]
[null,null,null,null,null,null,null,null,null,null,null,null,null,1190]
[null,null,null,null,null,null,null,null,null,null,null,null,null,1191]
[null,null,null,null,null,null,null,null,null,null,null,null,null,1192]
[null,null,null,null,null,null,null,null,null,null,null,null,null,1193]
[null,null,null,null,null,null,null,null,null,null,null,null,null,1194]
[null,null,null,null,null,null,null,null,null,null,null,null,null,1195]
[null,null,null,null,null,null,null,null,null,null,null,null,null,1196]
[null,null,null,null,null,null,null,null,null,null,null,null,null,1197]
[null,null,null,null,null,null,null,null,null,null,null,null,null,1198]
[null,null,null,null,null,null,null,null,null,null,null,null,null,1199]
[null,null,null,null,null,null,null,null,null,null,null,null,null,1200]
[null,null,null,null,null,null,null,null,null,null,null,null,null,1201]
[null,null,null,null,null,null,null,null,null,null,null,null,null,1202]
[null,null,null,null,null,null,null,null,null,null,null,null,null,1203]
[null,null,null,null,null,null,null,null,null,null,null,null,null,1204]
[null,null,null,null,null,null,null,null,null,null,null,null,null,1205]
[null,null,null,null,null,null,null,null,null,null,null,null,null,1206]
[null,null,null,null,null,null,null,null,null,null,null,null,null,1207]
[null,null,null,null,null,null,null,null,null,null,null,null,null,1208]
[null,null,null,null,null,null,null,null,null,null,null,null,null,1209]
[null,null,null,null,null,null,null,null,null,null,null,null,null,1210]
[null,null,null,null,null,null,null,null,null,null,null,null,null,1211]
[null,null,null,null,null,null,null,null,null,null,null,null,null,1212]
[null,null,null,null,null,null,null,null,null,null,null,null,null,1213]
[null,null,null,null,null,null,null,null,null,null,null,null,null,1214]
[null,null,null,null,null,null,null,null,null,null,null,null,null,1215]
[null,null,null,null,null,null,null,null,null,null,null,null,null,1216]
[null,null,null,null,null,null,null,null,null,null,null,null,null,1217]
[null,null,null,null,null,null,null,null,null,null,null,null,null,1218]
[null,null,null,null,null,null,null,null,null,null,null,null,null,1219]
[null,null,null,null,null,null,null,null,null,null,null,null,null,1220]
[null,null,null,null,null,null,null,null,null,null,null,null,null,1221]
[null,null,null,null,null,null,null,null,null,null,null,null,null,1222]
[null,null,null,null,null,null,null,null,null,null,null,null,null,1223]
[null,null,null,null,null,null,null,null,null,null,null,null,null,1224]
[null,null,null,null,null,null,null,null,null,null,null,null,null,1225]
[null,null,null,null,null,null,null,null,null,null,null,null,null,1226]
[null,null,null,null,null,null,null,null,null,null,null,null,null,1227]
[null,null,null,null,null,null,null,null,null,null,null,null,null,1228]
[null,null,null,null,null,null,null,null,null,null,null,null,null,1229]
[null,null,null,null,null,null,null,null,null,null,null,null,null,1230]
[null,null,null,null,null,null,null,null,null,null,null,null,null,1231]
[null,null,null,null,null,null,null,null,null,null,null,null,null,1232]
[null,null,null,null,null,null,null,null,null,null,null,null,null,1233]
[null,null,null,null,null,null,null,null,null,null,null,null,null,1234]
[null,null,null,null,null,null,null,null,null,null,null,null,null,1235]
[null,null,null,null,null,null,null,null,null,null,null,null,null,1236]
[null,null,null,null,null,null,null,null,null,null,null,null,null,1237]
[null,null,null,null,null,null,null,null,null,null,null,null,null,1238]
[null,null,null,null,null,null,null,null,null,null,null,null,null,1239]
[null,null,null,null,null,null,null,null,null,null,null,null,null,1240]
[null,null,null,null,null,null,null,null,null,null,null,null,null,1241]
[null,null,null,null,null,null,null,null,null,null,null,null,null,1242]
[null,null,null,null,null,null,null,null,null,null,null,null,null,1243]
[null,null,null,null,null,null,null,null,null,null,null,null,null,1244]
[null,null,null,null,null,null,null,null,null,null,null,null,null,1245]
[null,null,null,null,null,null,null,null,null,null,null,null,null,1246]
[null,null,null,null,null,null,null,null,null,null,null,null,null,1247]
[null,null,null,null,null,null,null,null,null,null,null,null,null,1248]
[null,null,null,null,null,null,null,null,null,null,null,null,null,1249]
[null,null,null,null,null,null,null,null,null,null,null,null,null,1250]
[null,null,null,null,null,null,null,null,null,null,null,null,null,1251]
[null,null,null,null,null,null,null,null,null,null,null,null,null,1252]
[null,null,null,null,null,null,null,null,null,null,null,null,null,1253]
[null,null,null,null,null,null,null,null,null,null,null,null,null,1254]
[null,null,null,null,null,null,null,null,null,null,null,null,null,1255]
[null,null,null,null,null,null,null,null,null,null,null,null,null,1256]
[null,null,null,null,null,null,null,null,null,null,null,null,null,1257]
[null,null,null,null,null,null,null,null,null,null,null,null,null,1258]
[null,null,null,null,null,null,null,null,null,null,null,null,null,1259]
[null,null,null,null,null,null,null,null,null,null,null,null,null,1260]
[null,null,null,null,null,null,null,null,null,null,null,null,null,1261]
[null,null,null,null,null,null,null,null,null,null,null,null,null,1262]
[null,null,null,null,null,null,null,null,null,null,null,null,null,1263]
[null,null,null,null,null,null,null,null,null,null,null,null,null,1264]
[null,null,null,null,null,null,null,null,null,null,null,null,null,1265]
[null,null,null,null,null,null,null,null,null,null,null,null,null,1266]
[null,null,null,null,null,null,null,null,null,null,null,null,null,1267]
[null,null,null,null,null,null,null,null,null,null,null,null,null,1268]
[null,null,null,null,null,null,null,null,null,null,null,null,null,1269]
[null,null,null,null,null,null,null,null,null,null,null,null,null,1270]
[null,null,null,null,null,null,null,null,null,null,null,null,null,1271]
[null,null,null,null,null,null,null,null,null,null,null,null,null,1272]
[null,null,null,null,null,null,null,null,null,null,null,null,null,1273]
[null,null,null,null,null,null,null,null,null,null,null,null,null,1274]
[null,null,null,null,null,null,null,null,null,null,null,null,null,1275]
[null,null,null,null,null,null,null,null,null,null,null,null,null,1276]
[null,null,null,null,null,null,null,null,null,null,null,null,null,1277]
[null,null,null,null,null,null,null,null,null,null,null,null,null,1278]
[null,null,null,null,null,null,null,null,null,null,null,null,null,1279]
[null,null,null,null,null,null,null,null,null,null,null,null,null,1280]
[null,null,null,null,null,null,null,null,null,null,null,null,null,1281]
[null,null,null,null,null,null,null,null,null,null,null,null,null,1282]
[null,null,null,null,null,null,null,null,null,null,null,null,null,1283]
[null,null,null,null,null,null,null,null,null,null,null,null,null,1284]
[null,null,null,null,null,null,null,null,null,null,null,null,null,1285]
[null,null,null,null,null,null,null,null,null,null,null,null,null,1286]
[null,null,null,null,null,null,null,null,null,null,null,null,null,1287]
[null,null,null,null,null,null,null,null,null,null,null,null,null,1288]
[null,null,null,null,null,null,null,null,null,null,null,null,null,1289]
[null,null,null,null,null,null,null,null,null,null,null,null,null,1290]
[null,null,null,null,null,null,null,null,null,null,null,null,null,1291]
[null,null,null,null,null,null,null,null,null,null,null,null,null,1292]
[null,null,null,null,null,null,null,null,null,null,null,null,null,1293]
[null,null,null,null,null,null,null,null,null,null,null,null,null,1294]
[null,null,null,null,null,null,null,null,null,null,null,null,null,1295]
[null,null,null,null,null,null,null,null,null,null,null,null,null,1296]
[null,null,null,null,null,null,null,null,null,null,null,null,null,1297]
[null,null,null,null,null,null,null,null,null,null,null,null,null,1298]
[null,null,null,null,null,null,null,null,null,null,null,null,null,1299]
[null,null,null,null,null,null,null,null,null,null,null,null,null,1300]
[null,null,null,null,null,null,null,null,null,null,null,null,null,1301]
[null,null,null,null,null,null,null,null,null,null,null,null,null,1302]
[null,null,null,null,null,null,null,null,null,null,null,null,null,1303]
[null,null,null,null,null,null,null,null,null,null,null,null,null,1304]
[null,null,null,null,null,null,null,null,null,null,null,null,null,1305]
[null,null,null,null,null,null,null,null,null,null,null,null,null,1306]
[null,null,null,null,null,null,null,null,null,null,null,null,null,1307]
[null,null,null,null,null,null,null,null,null,null,null,null,null,1308]
[null,null,null,null,null,null,null,null,null,null,null,null,null,1309]
[null,null,null,null,null,null,null,null,null,null,null,null,null,1310]
[null,null,null,null,null,null,null,null,null,null,null,null,null,1311]
[null,null,null,null,null,null,null,null,null,null,null,null,null,1312]
[null,null,null,null,null,null,null,null,null,null,null,null,null,1313]
[null,null,null,null,null,null,null,null,null,null,null,null,null,1314]
[null,null,null,null,null,null,null,null,null,null,null,null,null,1315]
[null,null,null,null,null,null,null,null,null,null,null,null,null,1316]
[null,null,null,null,null,null,null,null,null,null,null,null,null,1317]
[null,null,null,null,null,null,null,null,null,null,null,null,null,1318]
[null,null,null,null,null,null,null,null,null,null,null,null,null,1319]
[null,null,null,null,null,null,null,null,null,null,null,null,null,1320]
[null,null,null,null,null,null,null,null,null,null,null,null,null,1321]
[null,null,null,null,null,null,null,null,null,null,null,null,null,1322]
[null,null,null,null,null,null,null,null,null,null,null,null,null,1323]
[null,null,null,null,null,null,null,null,null,null,null,null,null,1324]
[null,null,null,null,null,null,null,null,null,null,null,null,null,1325]
[null,null,null,null,null,null,null,null,null,null,null,null,null,1326]
[null,null,null,null,null,null,null,null,null,null,null,null,null,1327]
[null,null,null,null,null,null,null,null,null,null,null,null,null,1328]
[null,null,null,null,null,null,null,null,null,null,null,null,null,1329]
[null,null,null,null,null,null,null,null,null,null,null,null,null,1330]
[null,null,null,null,null,null,null,null,null,null,null,null,null,1331]
[null,null,null,null,null,null,null,null,null,null,null,null,null,1332]
[null,null,null,null,null,null,null,null,null,null,null,null,null,1333]
[null,null,null,null,null,null,null,null,null,null,null,null,null,1334]
[null,null,null,null,null,null,null,null,null,null,null,null,null,1335]
[null,null,null,null,null,null,null,null,null,null,null,null,null,1336]
[null,null,null,null,null,null,null,null,null,null,null,null,null,1337]
[null,null,null,null,null,null,null,null,null,null,null,null,null,1338]
[null,null,null,null,null,null,null,null,null,null,null,null,null,1339]
[null,null,null,null,null,null,null,null,null,null,null,null,null,1340]
[null,null,null,null,null,null,null,null,null,null,null,null,null,1341]
[null,null,null,null,null,null,null,null,null,null,null,null,null,1342]
[null,null,null,null,null,null,null,null,null,null,null,null,null,1343]
[null,null,null,null,null,null,null,null,null,null,null,null,null,1344]
[null,null,null,null,null,null,null,null,null,null,null,null,null,1345]
[null,null,null,null,null,null,null,null,null,null,null,null,null,1346]
[null,null,null,null,null,null,null,null,null,null,null,null,null,1347]
[null,null,null,null,null,null,null,null,null,null,null,null,null,1348]
[null,null,null,null,null,null,null,null,null,null,null,null,null,1349]
[null,null,null,null,null,null,null,null,null,null,null,null,null,1350]
[null,null,null,null,null,null,null,null,null,null,null,null,null,1351]
[null,null,null,null,null,null,null,null,null,null,null,null,null,1352]
[null,null,null,null,null,null,null,null,null,null,null,null,null,1353]
[null,null,null,null,null,null,null,null,null,null,null,null,null,1354]
[null,null,null,null,null,null,null,null,null,null,null,null,null,1355]
[null,null,null,null,null,null,null,null,null,null,null,null,null,1356]
[null,null,null,null,null,null,null,null,null,null,null,null,null,1357]
[null,null,null,null,null,null,null,null,null,null,null,null,null,1358]
[null,null,null,null,null,null,null,null,null,null,null,null,null,1359]
[null,null,null,null,null,null,null,null,null,null,null,null,null,1360]
[null,null,null,null,null,null,null,null,null,null,null,null,null,1361]
[null,null,null,null,null,null,null,null,null,null,null,null,null,1362]
[null,null,null,null,null,null,null,null,null,null,null,null,null,1363]
[null,null,null,null,null,null,null,null,null,null,null,null,null,1364]
[null,null,null,null,null,null,null,null,null,null,null,null,null,1365]
[null,null,null,null,null,null,null,null,null,null,null,null,null,1366]
[null,null,null,null,null,null,null,null,null,null,null,null,null,1367]
[null,null,null,null,null,null,null,null,null,null,null,null,null,1368]
[null,null,null,null,null,null,null,null,null,null,null,null,null,1369]
[null,null,null,null,null,null,null,null,null,null,null,null,null,1370]
[null,null,null,null,null,null,null,null,null,null,null,null,null,1371]
[null,null,null,null,null,null,null,null,null,null,null,null,null,1372]
[null,null,null,null,null,null,null,null,null,null,null,null,null,1373]
[null,null,null,null,null,null,null,null,null,null,null,null,null,1374]
[null,null,null,null,null,null,null,null,null,null,null,null,null,1375]
[null,null,null,null,null,null,null,null,null,null,null,null,null,1376]
[null,null,null,null,null,null,null,null,null,null,null,null,null,1377]
[null,null,null,null,null,null,null,null,null,null,null,null,null,1378]
[null,null,null,null,null,null,null,null,null,null,null,null,null,1379]
[null,null,null,null,null,null,null,null,null,null,null,null,null,1380]
[null,null,null,null,null,null,null,null,null,null,null,null,null,1381]
[null,null,null,null,null,null,null,null,null,null,null,null,null,1382]
[null,null,null,null,null,null,null,null,null,null,null,null,null,1383]
[null,null,null,null,null,null,null,null,null,null,null,null,null,1384]
[null,null,null,null,null,null,null,null,null,null,null,null,null,1385]
[null,null,null,null,null,null,null,null,null,null,null,null,null,1386]
[null,null,null,null,null,null,null,null,null,null,null,null,null,1387]
[null,null,null,null,null,null,null,null,null,null,null,null,null,1388]
[null,null,null,null,null,null,null,null,null,null,null,null,null,1389]
[null,null,null,null,null,null,null,null,null,null,null,null,null,1390]
[null,null,null,null,null,null,null,null,null,null,null,null,null,1391]
[null,null,null,null,null,null,null,null,null,null,null,null,null,1392]
[null,null,null,null,null,null,null,null,null,null,null,null,null,1393]
[null,null,null,null,null,null,null,null,null,null,null,null,null,1394]
[null,null,null,null,null,null,null,null,null,null,null,null,null,1395]
[null,null,null,null,null,null,null,null,null,null,null,null,null,1396]
[null,null,null,null,null,null,null,null,null,null,null,null,null,1397]
[null,null,null,null,null,null,null,null,null,null,null,null,null,1398]
[null,null,null,null,null,null,null,null,null,null,null,null,null,1399]
[null,null,null,null,null,null,null,null,null,null,null,null,null,1400]
[null,null,null,null,null,null,null,null,null,null,null,null,null,1401]
[null,null,null,null,null,null,null,null,null,null,null,null,null,1402]
[null,null,null,null,null,null,null,null,null,null,null,null,null,1403]
[null,null,null,null,null,null,null,null,null,null,null,null,null,1404]
[null,null,null,null,null,null,null,null,null,null,null,null,null,1405]
[null,null,null,null,null,null,null,null,null,null,null,null,null,1406]
[null,null,null,null,null,null,null,null,null,null,null,null,null,1407]
[null,null,null,null,null,null,null,null,null,null,null,null,null,1408]
[null,null,null,null,null,null,null,null,null,null,null,null,null,1409]
[null,null,null,null,null,null,null,null,null,null,null,null,null,1410]
[null,null,null,null,null,null,null,null,null,null,null,null,null,1411]
[null,null,null,null,null,null,null,null,null,null,null,null,null,1412]
[null,null,null,null,null,null,null,null,null,null,null,null,null,1413]
[null,null,null,null,null,null,null,null,null,null,null,null,null,1414]
[null,null,null,null,null,null,null,null,null,null,null,null,null,1415]
[null,null,null,null,null,null,null,null,null,null,null,null,null,1416]
[null,null,null,null,null,null,null,null,null,null,null,null,null,1417]
[null,null,null,null,null,null,null,null,null,null,null,null,null,1418]
[null,null,null,null,null,null,null,null,null,null,null,null,null,1419]
[null,null,null,null,null,null,null,null,null,null,null,null,null,1420]
[null,null,null,null,null,null,null,null,null,null,null,null,null,1421]
[null,null,null,null,null,null,null,null,null,null,null,null,null,1422]
[null,null,null,null,null,null,null,null,null,null,null,null,null,1423]
[null,null,null,null,null,null,null,null,null,null,null,null,null,1424]
[null,null,null,null,null,null,null,null,null,null,null,null,null,1425]
[null,null,null,null,null,null,null,null,null,null,null,null,null,1426]
[null,null,null,null,null,null,null,null,null,null,null,null,null,1427]
[null,null,null,null,null,null,null,null,null,null,null,null,null,1428]
[null,null,null,null,null,null,null,null,null,null,null,null,null,1429]
[null,null,null,null,null,null,null,null,null,null,null,null,null,1430]
[null,null,null,null,null,null,null,null,null,null,null,null,null,1431]
[null,null,null,null,null,null,null,null,null,null,null,null,null,1432]
[null,null,null,null,null,null,null,null,null,null,null,null,null,1433]
[null,null,null,null,null,null,null,null,null,null,null,null,null,1434]
[null,null,null,null,null,null,null,null,null,null,null,null,null,1435]
[null,null,null,null,null,null,null,null,null,null,null,null,null,1436]
[null,null,null,null,null,null,null,null,null,null,null,null,null,1437]
[null,null,null,null,null,null,null,null,null,null,null,null,null,1438]
[null,null,null,null,null,null,null,null,null,null,null,null,null,1439]
[null,null,null,null,null,null,null,null,null,null,null,null,null,1440]
[null,null,null,null,null,null,null,null,null,null,null,null,null,1441]
[null,null,null,null,null,null,null,null,null,null,null,null,null,1442]
[null,null,null,null,null,null,null,null,null,null,null,null,null,1443]
[null,null,null,null,null,null,null,null,null,null,null,null,null,1444]
[null,null,null,null,null,null,null,null,null,null,null,null,null,1445]
[null,null,null,null,null,null,null,null,null,null,null,null,null,1446]
[null,null,null,null,null,null,null,null,null,null,null,null,null,1447]
[null,null,null,null,null,null,null,null,null,null,null,null,null,1448]
[null,null,null,null,null,null,null,null,null,null,null,null,null,1449]
[null,null,null,null,null,null,null,null,null,null,null,null,null,1450]
[null,null,null,null,null,null,null,null,null,null,null,null,null,1451]
[null,null,null,null,null,null,null,null,null,null,null,null,null,1452]
[null,null,null,null,null,null,null,null,null,null,null,null,null,1453]
[null,null,null,null,null,null,null,null,null,null,null,null,null,1454]
[null,null,null,null,null,null,null,null,null,null,null,null,null,1455]
[null,null,null,null,null,null,null,null,null,null,null,null,null,1456]
[null,null,null,null,null,null,null,null,null,null,null,null,null,1457]
[null,null,null,null,null,null,null,null,null,null,null,null,null,1458]
[null,null,null,null,null,null,null,null,null,null,null,null,null,1459]
[null,null,null,null,null,null,null,null,null,null,null,null,null,1460]
[null,null,null,null,null,null,null,null,null,null,null,null,null,1461]
[null,null,null,null,null,null,null,null,null,null,null,null,null,1462]
[null,null,null,null,null,null,null,null,null,null,null,null,null,1463]
[null,null,null,null,null,null,null,null,null,null,null,null,null,1464]
[null,null,null,null,null,null,null,null,null,null,null,null,null,1465]
[null,null,null,null,null,null,null,null,null,null,null,null,null,1466]
[null,null,null,null,null,null,null,null,null,null,null,null,null,1467]
[null,null,null,null,null,null,null,null,null,null,null,null,null,1468]
[null,null,null,null,null,null,null,null,null,null,null,null,null,1469]
[null,null,null,null,null,null,null,null,null,null,null,null,null,1470]
[null,null,null,null,null,null,null,null,null,null,null,null,null,1471]
[null,null,null,null,null,null,null,null,null,null,null,null,null,1472]
[null,null,null,null,null,null,null,null,null,null,null,null,null,1473]
[null,null,null,null,null,null,null,null,null,null,null,null,null,1474]
[null,null,null,null,null,null,null,null,null,null,null,null,null,1475]
[null,null,null,null,null,null,null,null,null,null,null,null,null,1476]
[null,null,null,null,null,null,null,null,null,null,null,null,null,1477]
[null,null,null,null,null,null,null,null,null,null,null,null,null,1478]
[null,null,null,null,null,null,null,null,null,null,null,null,null,1479]
[null,null,null,null,null,null,null,null,null,null,null,null,null,1480]
[null,null,null,null,null,null,null,null,null,null,null,null,null,1481]
[null,null,null,null,null,null,null,null,null,null,null,null,null,1482]
[null,null,null,null,null,null,null,null,null,null,null,null,null,1483]
[null,null,null,null,null,null,null,null,null,null,null,null,null,1484]
[null,null,null,null,null,null,null,null,null,null,null,null,null,1485]
[null,null,null,null,null,null,null,null,null,null,null,null,null,1486]
[null,null,null,null,null,null,null,null,null,null,null,null,null,1487]
[null,null,null,null,null,null,null,null,null,null,null,null,null,1488]
[null,null,null,null,null,null,null,null,null,null,null,null,null,1489]
[null,null,null,null,null,null,null,null,null,null,null,null,null,1490]
[null,null,null,null,null,null,null,null,null,null,null,null,null,1491]
[null,null,null,null,null,null,null,null,null,null,null,null,null,1492]
[null,null,null,null,null,null,null,null,null,null,null,null,null,1493]
[null,null,null,null,null,null,null,null,null,null,null,null,null,1494]
[null,null,null,null,null,null,null,null,null,null,null,null,null,1495]
[null,null,null,null,null,null,null,null,null,null,null,null,null,1496]
[null,null,null,null,null,null,null,null,null,null,null,null,null,1497]
[null,null,null,null,null,null,null,null,null,null,null,null,null,1498]
[null,null,null,null,null,null,null,null,null,null,null,null,null,1499]
[null,null,null,null,null,null,null,null,null,null,null,null,null,1500]
[null,null,null,null,null,null,null,null,null,null,null,null,null,1501]
[null,null,null,null,null,null,null,null,null,null,null,null,null,1502]
[null,null,null,null,null,null,null,null,null,null,null,null,null,1503]
[null,null,null,null,null,null,null,null,null,null,null,null,null,1504]
[null,null,null,null,null,null,null,null,null,null,null,null,null,1505]
[null,null,null,null,null,null,null,null,null,null,null,null,null,1506]
[null,null,null,null,null,null,null,null,null,null,null,null,null,1507]
[null,null,null,null,null,null,null,null,null,null,null,null,null,1508]
[null,null,null,null,null,null,null,null,null,null,null,null,null,1509]
[null,null,null,null,null,null,null,null,null,null,null,null,null,1510]
[null,null,null,null,null,null,null,null,null,null,null,null,null,1511]
[null,null,null,null,null,null,null,null,null,null,null,null,null,1512]
[null,null,null,null,null,null,null,null,null,null,null,null,null,1513]
[null,null,null,null,null,null,null,null,null,null,null,null,null,1514]
[null,null,null,null,null,null,null,null,null,null,null,null,null,1515]
[null,null,null,null,null,null,null,null,null,null,null,null,null,1516]
[null,null,null,null,null,null,null,null,null,null,null,null,null,1517]
[null,null,null,null,null,null,null,null,null,null,null,null,null,1518]
[null,null,null,null,null,null,null,null,null,null,null,null,null,1519]
[null,null,null,null,null,null,null,null,null,null,null,null,null,1520]
[null,null,null,null,null,null,null,null,null,null,null,null,null,1521]
[null,null,null,null,null,null,null,null,null,null,null,null,null,1522]
[null,null,null,null,null,null,null,null,null,null,null,null,null,1523]
[null,null,null,null,null,null,null,null,null,null,null,null,null,1524]
[null,null,null,null,null,null,null,null,null,null,null,null,null,1525]
[null,null,null,null,null,null,null,null,null,null,null,null,null,1526]
[null,null,null,null,null,null,null,null,null,null,null,null,null,1527]
[null,null,null,null,null,null,null,null,null,null,null,null,null,1528]
[null,null,null,null,null,null,null,null,null,null,null,null,null,1529]
[null,null,null,null,null,null,null,null,null,null,null,null,null,1530]
[null,null,null,null,null,null,null,null,null,null,null,null,null,1531]
[null,null,null,null,null,null,null,null,null,null,null,null,null,1532]
[null,null,null,null,null,null,null,null,null,null,null,null,null,1533]
[null,null,null,null,null,null,null,null,null,null,null,null,null,1534]
[null,null,null,null,null,null,null,null,null,null,null,null,null,1535]
[null,null,null,null,null,null,null,null,null,null,null,null,null,1536]
[null,null,null,null,null,null,null,null,null,null,null,null,null,1537]
[null,null,null,null,null,null,null,null,null,null,null,null,null,1538]
[null,null,null,null,null,null,null,null,null,null,null,null,null,1539]
[null,null,null,null,null,null,null,null,null,null,null,null,null,1540]
[null,null,null,null,null,null,null,null,null,null,null,null,null,1541]
[null,null,null,null,null,null,null,null,null,null,null,null,null,1542]
[null,null,null,null,null,null,null,null,null,null,null,null,null,1543]
[null,null,null,null,null,null,null,null,null,null,null,null,null,1544]
[null,null,null,null,null,null,null,null,null,null,null,null,null,1545]
[null,null,null,null,null,null,null,null,null,null,null,null,null,1546]
[null,null,null,null,null,null,null,null,null,null,null,null,null,1547]
[null,null,null,null,null,null,null,null,null,null,null,null,null,1548]
[null,null,null,null,null,null,null,null,null,null,null,null,null,1549]
[null,null,null,null,null,null,null,null,null,null,null,null,null,1550]
[null,null,null,null,null,null,null,null,null,null,null,null,null,1551]
[null,null,null,null,null,null,null,null,null,null,null,null,null,1552]
[null,null,null,null,null,null,null,null,null,null,null,null,null,1553]
[null,null,null,null,null,null,null,null,null,null,null,null,null,1554]
[null,null,null,null,null,null,null,null,null,null,null,null,null,1555]
[null,null,null,null,null,null,null,null,null,null,null,null,null,1556]
[null,null,null,null,null,null,null,null,null,null,null,null,null,1557]
[null,null,null,null,null,null,null,null,null,null,null,null,null,1558]
[null,null,null,null,null,null,null,null,null,null,null,null,null,1559]
[null,null,null,null,null,null,null,null,null,null,null,null,null,1560]
[null,null,null,null,null,null,null,null,null,null,null,null,null,1561]
[null,null,null,null,null,null,null,null,null,null,null,null,null,1562]
[null,null,null,null,null,null,null,null,null,null,null,null,null,1563]
[null,null,null,null,null,null,null,null,null,null,null,null,null,1564]
[null,null,null,null,null,null,null,null,null,null,null,null,null,1565]
[null,null,null,null,null,null,null,null,null,null,null,null,null,1566]
[null,null,null,null,null,null,null,null,null,null,null,null,null,1567]
[null,null,null,null,null,null,null,null,null,null,null,null,null,1568]
[null,null,null,null,null,null,null,null,null,null,null,null,null,1569]
[null,null,null,null,null,null,null,null,null,null,null,null,null,1570]
[null,null,null,null,null,null,null,null,null,null,null,null,null,1571]
[null,null,null,null,null,null,null,null,null,null,null,null,null,1572]
[null,null,null,null,null,null,null,null,null,null,null,null,null,1573]
[null,null,null,null,null,null,null,null,null,null,null,null,null,1574]
[null,null,null,null,null,null,null,null,null,null,null,null,null,1575]
[null,null,null,null,null,null,null,null,null,null,null,null,null,1576]
[null,null,null,null,null,null,null,null,null,null,null,null,null,1577]
[null,null,null,null,null,null,null,null,null,null,null,null,null,1578]
[null,null,null,null,null,null,null,null,null,null,null,null,null,1579]
[null,null,null,null,null,null,null,null,null,null,null,null,null,1580]
[null,null,null,null,null,null,null,null,null,null,null,null,null,1581]
[null,null,null,null,null,null,null,null,null,null,null,null,null,1582]
[null,null,null,null,null,null,null,null,null,null,null,null,null,1583]
[null,null,null,null,null,null,null,null,null,null,null,null,null,1584]
[null,null,null,null,null,null,null,null,null,null,null,null,null,1585]
[null,null,null,null,null,null,null,null,null,null,null,null,null,1586]
[null,null,null,null,null,null,null,null,null,null,null,null,null,1587]
[null,null,null,null,null,null,null,null,null,null,null,null,null,1588]
[null,null,null,null,null,null,null,null,null,null,null,null,null,1589]
[null,null,null,null,null,null,null,null,null,null,null,null,null,1590]
[null,null,null,null,null,null,null,null,null,null,null,null,null,1591]
[null,null,null,null,null,null,null,null,null,null,null,null,null,1592]
[null,null,null,null,null,null,null,null,null,null,null,null,null,1593]
[null,null,null,null,null,null,null,null,null,null,null,null,null,1594]
[null,null,null,null,null,null,null,null,null,null,null,null,null,1595]
[null,null,null,null,null,null,null,null,null,null,null,null,null,1596]
[null,null,null,null,null,null,null,null,null,null,null,null,null,1597]
[null,null,null,null,null,null,null,null,null,null,null,null,null,1598]
[null,null,null,null,null,null,null,null,null,null,null,null,null,1599]
[null,null,null,null,null,null,null,null,null,null,null,null,null,1600]
[null,null,null,null,null,null,null,null,null,null,null,null,null,1601]
[null,null,null,null,null,null,null,null,null,null,null,null,null,1602]
[null,null,null,null,null,null,null,null,null,null,null,null,null,1603]
[null,null,null,null,null,null,null,null,null,null,null,null,null,1604]
[null,null,null,null,null,null,null,null,null,null,null,null,null,1605]
[null,null,null,null,null,null,null,null,null,null,null,null,null,1606]
[null,null,null,null,null,null,null,null,null,null,null,null,null,1607]
[null,null,null,null,null,null,null,null,null,null,null,null,null,1608]
[null,null,null,null,null,null,null,null,null,null,null,null,null,1609]
[null,null,null,null,null,null,null,null,null,null,null,null,null,1610]
[null,null,null,null,null,null,null,null,null,null,null,null,null,1611]
[null,null,null,null,null,null,null,null,null,null,null,null,null,1612]
[null,null,null,null,null,null,null,null,null,null,null,null,null,1613]
[null,null,null,null,null,null,null,null,null,null,null,null,null,1614]
[null,null,null,null,null,null,null,null,null,null,null,null,null,1615]
[null,null,null,null,null,null,null,null,null,null,null,null,null,1616]
[null,null,null,null,null,null,null,null,null,null,null,null,null,1617]
[null,null,null,null,null,null,null,null,null,null,null,null,null,1618]
[null,null,null,null,null,null,null,null,null,null,null,null,null,1619]
[null,null,null,null,null,null,null,null,null,null,null,null,null,1620]
[null,null,null,null,null,null,null,null,null,null,null,null,null,1621]
[null,null,null,null,null,null,null,null,null,null,null,null,null,1622]
[null,null,null,null,null,null,null,null,null,null,null,null,null,1623]
[null,null,null,null,null,null,null,null,null,null,null,null,null,1624]
[null,null,null,null,null,null,null,null,null,null,null,null,null,1625]
[null,null,null,null,null,null,null,null,null,null,null,null,null,1626]
[null,null,null,null,null,null,null,null,null,null,null,null,null,1627]
[null,null,null,null,null,null,null,null,null,null,null,null,null,1628]
[null,null,null,null,null,null,null,null,null,null,null,null,null,1629]
[null,null,null,null,null,null,null,null,null,null,null,null,null,1630]
[null,null,null,null,null,null,null,null,null,null,null,null,null,1631]
[null,null,null,null,null,null,null,null,null,null,null,null,null,1632]
[null,null,null,null,null,null,null,null,null,null,null,null,null,1633]
[null,null,null,null,null,null,null,null,null,null,null,null,null,1634]
[null,null,null,null,null,null,null,null,null,null,null,null,null,1635]
[null,null,null,null,null,null,null,null,null,null,null,null,null,1636]
[null,null,null,null,null,null,null,null,null,null,null,null,null,1637]
[null,null,null,null,null,null,null,null,null,null,null,null,null,1638]
[null,null,null,null,null,null,null,null,null,null,null,null,null,1639]
[null,null,null,null,null,null,null,null,null,null,null,null,null,1640]
[null,null,null,null,null,null,null,null,null,null,null,null,null,1641]
[null,null,null,null,null,null,null,null,null,null,null,null,null,1642]
[null,null,null,null,null,null,null,null,null,null,null,null,null,1643]
[null,null,null,null,null,null,null,null,null,null,null,null,null,1644]
[null,null,null,null,null,null,null,null,null,null,null,null,null,1645]
[null,null,null,null,null,null,null,null,null,null,null,null,null,1646]
[null,null,null,null,null,null,null,null,null,null,null,null,null,1647]
[null,null,null,null,null,null,null,null,null,null,null,null,null,1648]
[null,null,null,null,null,null,null,null,null,null,null,null,null,1649]
[null,null,null,null,null,null,null,null,null,null,null,null,null,1650]
[null,null,null,null,null,null,null,null,null,null,null,null,null,1651]
[null,null,null,null,null,null,null,null,null,null,null,null,null,1652]
[null,null,null,null,null,null,null,null,null,null,null,null,null,1653]
[null,null,null,null,null,null,null,null,null,null,null,null,null,1654]
[null,null,null,null,null,null,null,null,null,null,null,null,null,1655]
[null,null,null,null,null,null,null,null,null,null,null,null,null,1656]
[null,null,null,null,null,null,null,null,null,null,null,null,null,1657]
[null,null,null,null,null,null,null,null,null,null,null,null,null,1658]
[null,null,null,null,null,null,null,null,null,null,null,null,null,1659]
[null,null,null,null,null,null,null,null,null,null,null,null,null,1660]
[null,null,null,null,null,null,null,null,null,null,null,null,null,1661]
[null,null,null,null,null,null,null,null,null,null,null,null,null,1662]
[null,null,null,null,null,null,null,null,null,null,null,null,null,1663]
[null,null,null,null,null,null,null,null,null,null,null,null,null,1664]
[null,null,null,null,null,null,null,null,null,null,null,null,null,1665]
[null,null,null,null,null,null,null,null,null,null,null,null,null,1666]
[null,null,null,null,null,null,null,null,null,null,null,null,null,1667]
[null,null,null,null,null,null,null,null,null,null,null,null,null,1668]
[null,null,null,null,null,null,null,null,null,null,null,null,null,1669]